Cogmind - Beta 16 @@@ ROGUE MODE // 2025.12.18 @ 16:51:35 Player: AngelSpirit Result: Escaped! Performance ------------- Evolutions (9) 4500 Regions Visited (32) 6400 Robots Destroyed (543) 2715 Value Destroyed (26863) 26863 Prototype IDs (111) 2220 Alien Tech Used (2) 400 Bonus (32799) 32799 TOTAL SCORE: 75897 Bonus ------- Triggered High Security 500 High Alert Combat Kills 6491 Follower Combat Kills 2935 Entered Garrisons 200 Network Hubs Disabled 200 Aligned with FarCom 300 Acquired ECA 300 Met Zhirov 300 Met Warlord at Base 500 MAIN.C Attacked Warlord 500 Warlord Defense Kills 440 Built Enhanced Grunts 300 A7 Reached Mainframe 300 Met R17 at Cetus 500 Read Decrypted Archives 300 Met R17 at Research 2000 Met Warlord at Research 2000 Invited to Help at Command 2000 Met MAIN.C 5000 Hacked MAIN.C 300 Destroyed MAIN.C Shell 5000 Win 3000 Friendly Fire -567 Cogmind --------- Core Integrity 224/1600 Matter 144/300 Energy 80/100 System Corruption 6% Temperature Cool (0) Movement Core (50) Location To Epsilon Eridani Parts ------- > --- POWER (2) -------- (None) > --- PROPULSION (6) --- High-density Centrium Leg > --- UTILITY (13) ----- (None) > --- WEAPON (4) ------- (None) > --- INVENTORY (5) ---- Vortex Driver (20) Heavy Hardcell Cannon Nanosword Peak State ------------ > --- POWER ------------ Vortex Chain Reactor > --- PROPULSION ------- Centrium Leg High-density Centrium Leg High-density Centrium Leg High-density Centrium Leg Experimental Biometal Leg Experimental Biometal Leg > --- UTILITY ---------- Advanced Heat Sink Advanced Coolant Injector High-capacity Storage Unit Energy Well Improved Targeting Computer Experimental Target Analyzer Experimental Armor Integrity Analyzer Advanced Kinecellerator Layered Medium Armor Plating Layered Medium Armor Plating Thermal Barrier AEGIS Remote Shield Experimental System Purifier > --- WEAPON ----------- Heavy Quantum Rifle Heavy Quantum Rifle Graviton Cannon Graviton Cannon > --- INVENTORY -------- Reinforced Quantum Reactor Reinforced Quantum Reactor Advanced Heat Sink Matter Compressor Transdimensional Reconstructor Vortex Driver Enhanced Nova Cannon Heavy Hardcell Cannon Advanced Remote Datajack Improved Plasma Cutter Nanosword [Rating: 223] Favorites ----------- Power Cooled Deuterium Engine Engine Cooled Deuterium Engine Power Core Micro Fission Core Reactor Reinforced Quantum Reactor Propulsion Armored Huge Wheel Treads Advanced Heavy Treads Leg Enhanced Biometal Leg Wheel Armored Huge Wheel Hover Unit Cooled Gravmag System Flight Unit Improved Flight Unit Utility Hacking Suite Device Experimental Heat Sink Storage Huge Storage Unit Processor Experimental Targeting Computer Hackware Hacking Suite Protection Improved Medium Armor Plating Weapon Hypervelocity Railgun Energy Gun Gatling Laser Energy Cannon EMDS Ballistic Gun Hypervelocity Railgun Ballistic Cannon Hypervelocity Mass Driver Launcher Rocket Launcher Special Weapon Improved Plasma Cutter Slashing Weapon Great Axe Piercing Weapon Lance Build | -11 -10 -10 -9 -9 -9 -8 -8 -8 -8 -8 -8 -6 -6 -6 -6 -6 -5 -5 -5 -5 -5 -5 -4 -4 -4 -4 -4 -3 -3 -2 -1 -1 ------- Run | Yrd Mat Min Mat Min Exi Min Mat Gar Mat Sto Rec Fac Ext Cet Arc Hub Fac Was Fac Upp Upp Zhi Pro Fac Upp Upp War Pro Res Res Acc Com Slots Evolved 18 | . . . 2 . . . 2 . . . . 4 . . . . 2 . . . . . . 2 . . . . 2 2 2 . Power 1 | . . . . . . . . . . . . . . . . . 1 . . . . . . . . . . . . . . . Propulsion 4 | . . . . . . . 1 . . . . 1 . . . . 1 . . . . . . . . . . . 1 . . . Utility 11 | . . . 1 . . . 1 . . . . 3 . . . . . . . . . . . 2 . . . . 1 1 2 . Weapon 2 | . . . 1 . . . . . . . . . . . . . . . . . . . . . . . . . . 1 . . Parts Attached 445 | 6 6 . 29 . . . 12 21 12 9 . 18 11 3 1 44 29 7 18 4 1 7 . 15 1 3 3 2 26 31 81 45 Power 48 | 1 1 . 2 . . . 1 3 3 . . 2 1 1 . 2 6 . 1 . . 1 . . . . 1 2 6 1 10 3 Engine 12 | 1 1 . 2 . . . . 3 2 . . 1 1 . . 1 . . . . . . . . . . . . . . . . Core 8 | . . . . . . . 1 . 1 . . . . . . 1 2 . 1 . . . . . . . 1 . 1 . . . Reactor 28 | . . . . . . . . . . . . 1 . 1 . . 4 . . . . 1 . . . . . 2 5 1 10 3 Propulsion 114 | 2 1 . 11 . . . 3 6 3 . . 3 . 1 . 13 8 2 5 2 . 3 . 4 . . . . 8 10 17 12 Treads 6 | . . . . . . . . . . . . . . . . . . . . . . . . . . . . . . . . 6 Leg 34 | . . . . . . . . . . . . . . . . 4 1 . . . . . . . . . . . . 6 17 6 Wheel 44 | 2 1 . 10 . . . 2 6 3 . . 3 . 1 . 6 . . . . . . . . . . . . 6 4 . . Hover 29 | . . . . . . . 1 . . . . . . . . 3 7 2 5 2 . 3 . 4 . . . . 2 . . . Flight 1 | . . . 1 . . . . . . . . . . . . . . . . . . . . . . . . . . . . . Utility 178 | 1 3 . 6 . . . 4 5 2 2 . 11 7 1 1 18 12 2 9 2 1 3 . 7 1 2 1 . 8 16 37 16 Device 75 | . 1 . . . . . 1 . . . . 6 1 1 . 7 5 1 3 1 . 1 . 3 1 . 1 . 4 5 23 10 Storage 15 | 1 2 . 1 . . . . . . . . 1 1 . . . 1 . 2 . . 1 . . . . . . 2 2 1 . Processor 31 | . . . 1 . . . . 1 . . . 1 . . . 3 2 . 1 . . . . 1 . 1 . . 1 6 10 3 Hackware 13 | . . . 1 . . . . . 1 . . 2 . . 1 . 1 . . 1 . . . 2 . 1 . . . 2 1 . Protection 44 | . . . 3 . . . 3 4 1 2 . 1 5 . . 8 3 1 3 . 1 1 . 1 . . . . 1 1 2 3 Artifact . | . . . . . . . . . . . . . . . . . . . . . . . . . . . . . . . . . Weapon 105 | 2 1 . 10 . . . 4 7 4 7 . 2 3 . . 11 3 3 3 . . . . 4 . 1 1 . 4 4 17 14 Energy Gun 21 | 1 1 . 3 . . . . 3 . 4 . 1 2 . . 2 . . . . . . . . . 1 . . 1 . . 2 Energy Cannon 12 | . . . 1 . . . 2 1 . . . . . . . 3 1 . . . . . . . . . . . . . . 4 Ballistic Gun 36 | 1 . . 5 . . . 1 2 1 1 . . . . . 3 . 1 . . . . . . . . . . 2 2 15 2 Ballistic Cannon 17 | . . . . . . . . 1 . 1 . 1 . . . . . 1 3 . . . . 4 . . . . . 1 1 4 Launcher 6 | . . . 1 . . . . . 1 1 . . . . . . 1 1 . . . . . . . . . . . . 1 . Special Weapon 3 | . . . . . . . . . . . . . . . . 1 . . . . . . . . . . . . . . . 2 Impact Weapon . | . . . . . . . . . . . . . . . . . . . . . . . . . . . . . . . . . Slashing Weapon 8 | . . . . . . . 1 . 2 . . . 1 . . 2 . . . . . . . . . . . . 1 1 . . Piercing Weapon 2 | . . . . . . . . . . . . . . . . . 1 . . . . . . . . . 1 . . . . . Special Melee Weapon . | . . . . . . . . . . . . . . . . . . . . . . . . . . . . . . . . . Unidentified Prototypes 61 | . . . 4 . . . 2 . 1 7 . 3 1 . . 6 2 1 1 . . 6 . . . . 2 . 4 6 3 12 Parts Lost 129 | . 3 . 7 . . . 6 8 5 1 . 4 6 . . 22 7 . . . . . . 2 . . . . . . 33 25 Power 10 | . 1 . . . . . 1 1 1 . . . 1 . . 1 . . . . . . . . . . . . . . 2 2 Propulsion 32 | . 1 . 3 . . . . 5 2 . . 2 . . . 8 2 . . . . . . . . . . . . . 4 5 Utility 53 | . . . 1 . . . 2 . . . . 1 4 . . 6 4 . . . . . . 1 . . . . . . 21 13 Weapon 34 | . 1 . 3 . . . 3 2 2 1 . 1 1 . . 7 1 . . . . . . 1 . . . . . . 6 5 Highest Loss Streak 11 | . 1 . 2 . . . 3 3 2 1 . 3 1 . . 5 3 . . . . . . 1 . . . . . . 9 11 To Critical Strikes 2 | . . . . . . . . . . . . 1 . . . . . . . . . . . . . . . . . . . 1 Average Backups 17 | . 5 10 11 21 21 22 21 19 17 19 20 20 20 24 24 23 14 8 11 13 13 13 14 13 14 14 13 14 13 17 17 13 Power 1 | . 1 2 1 1 1 1 . 1 2 2 2 2 2 2 3 3 2 1 1 1 1 1 1 . . . . . . . 1 1 Propulsion 2 | . 1 4 3 8 8 8 8 6 4 3 3 2 2 2 1 3 2 1 1 1 1 1 1 1 1 1 1 1 . . 1 1 Utility 7 | . 1 3 4 8 7 8 7 9 6 10 10 10 11 15 15 12 7 4 5 4 5 5 6 5 5 5 4 4 2 6 3 1 Weapon 4 | . . 1 1 3 4 4 3 2 2 3 4 3 2 3 3 3 1 2 3 4 4 3 3 3 5 5 5 6 7 8 8 5 Tool/Special . | . . . . . . . . . . . . . . . . . . . . . . . . . . . . . . . . . Unused Backups 57 | . . . 5 . 1 . 3 4 4 3 . 5 . 2 1 2 5 . 2 . . 2 . 3 . . . . 4 3 5 3 Power 9 | . . . . . . . . . 1 1 . 2 . 1 . 1 . . . . . . . . . . . . . . 2 1 Propulsion 12 | . . . 3 . . . . 3 . . . . . . . . . . 1 . . . . 1 . . . . . 1 3 . Utility 16 | . . . . . 1 . 3 . 1 1 . 2 . 1 1 1 2 . . . . 1 . . . . . . . 1 . 1 Weapon 18 | . . . 1 . . . . 1 2 1 . 1 . . . . 2 . 1 . . 1 . 2 . . . . 4 1 . 1 Tool/Special 2 | . . . 1 . . . . . . . . . . . . . 1 . . . . . . . . . . . . . . . Average Slot Usage (%) 89 | . 97 100 98 100 100 100 96 90 89 88 81 79 79 82 86 91 86 80 84 88 88 84 93 93 97 100 100 100 98 99 91 78 Engine 4 | . 13 14 11 11 11 11 8 7 7 . . 5 5 3 . 1 4 5 5 5 5 2 . . . . . . . . . . Core 1 | . . . . . . . . 1 1 9 9 . . . . 2 3 5 4 5 5 5 5 4 5 5 5 5 1 1 . . Reactor 2 | . . . . . . . . . . . . . . 2 6 2 . . . . . 2 5 5 5 5 5 5 7 6 7 6 Leg 3 | . . . . . . . . . . . . . . . . 3 8 . . . . . . . . . . . . 3 22 5 Wheel 11 | . 28 28 21 22 22 22 24 23 17 18 18 12 13 15 20 18 . . . . . . . . . . . . 10 22 . . Hover 5 | . . . . . . . . . . . . . . . . . 16 20 19 23 23 26 29 26 26 26 26 26 16 . . . Device 7 | . 13 14 5 . . . 4 . . . . 4 . 5 6 10 10 6 10 11 11 10 7 8 15 10 10 10 12 9 14 17 Storage 6 | . 14 14 11 11 11 11 9 9 9 9 9 6 6 6 6 6 5 5 5 5 5 5 5 5 5 5 5 5 4 4 5 7 Processor 6 | . . . . . . . . 5 . . . 5 6 6 6 7 11 11 5 5 5 5 5 8 5 9 10 10 8 11 15 15 Hackware 9 | . . . 5 11 11 11 9 9 17 18 18 19 17 6 8 5 1 5 5 5 5 5 5 14 15 15 15 15 14 13 5 . Protection 8 | . . . 9 11 11 11 13 8 9 9 9 7 12 13 10 13 8 5 10 10 11 11 14 6 5 5 5 5 5 8 6 3 Energy Gun 2 | . 12 14 7 . . . . 6 5 7 . . 4 13 13 7 . . . . . . . . . . . . . . . . Energy Cannon 2 | . . . 4 11 11 4 10 2 8 . . . . . . 3 4 . 4 2 4 . 4 . . . . . . . . 1 Ballistic Gun 5 | . 14 14 19 22 22 22 15 5 3 7 . . . . . 1 . . . . . . . . . . . . . 5 11 8 Ballistic Cannon 3 | . . . . . . . . 2 . 1 9 6 3 . . . . 4 . 2 . . . 4 8 10 10 10 8 8 2 3 Slashing Weapon 2 | . . . . . . . . 9 8 9 9 5 5 6 6 3 2 . . . . . . . . . . . 2 2 . . Piercing Weapon 1 | . . . . . . . . . . . . . . . . . 2 5 5 5 5 5 5 5 4 4 5 4 1 . . . Peak Build Rating 223 | 6 8 8 21 22 23 23 30 41 44 46 43 71 73 78 74 111 119 97 110 111 108 113 116 120 123 120 122 125 146 183 203 223 Average Rating 88 | 4 7 8 14 21 22 22 26 35 40 43 43 65 66 72 73 73 103 87 103 103 106 91 110 114 118 118 119 122 133 154 176 174 On Entrance 75 | . 6 8 8 21 22 23 23 28 40 44 43 43 67 70 73 74 111 80 95 106 100 108 113 100 117 119 119 122 122 126 183 189 Avg Prop Armor Cover (%) 4 | . . . . . . . . . . . . . . . . 3 1 2 . . . . . . . . . . 8 4 . 11 Naked Turns 1 | . . . . . . . . . . . . . . . . . . . . . . . . . . . . . . . . 1 Heaviest Build 181 | 13 89 88 105 105 105 105 117 130 111 110 108 124 134 141 141 146 160 52 71 71 69 66 68 72 79 69 68 68 95 136 171 181 Greatest Support 215 | 26 26 26 28 28 28 28 44 44 44 40 40 56 56 56 50 104 119 60 73 73 72 72 68 68 69 69 69 69 87 171 178 215 Greatest Overweight (x) 11 | . 3 3 8 3 3 3 3 3 11 2 2 2 2 2 2 6 2 1 1 . . . . 1 1 . . . 2 4 1 3 Average Overweight (x) . | . 2 3 3 3 3 3 2 2 2 2 2 1 1 2 2 2 . . . . . . . . . . . . . . . . Largest Inventory Capacity 25 | 8 25 25 25 25 25 25 25 25 25 25 25 25 25 25 25 25 25 10 15 15 15 15 15 15 15 15 15 15 15 20 20 20 Average Capacity 21 | 7 21 25 25 25 25 25 25 25 25 25 25 25 25 25 25 25 15 10 13 15 15 15 15 15 15 15 15 15 15 19 20 19 Most Carried 25 | . 9 11 20 22 22 22 24 25 25 25 25 25 25 25 25 25 25 10 15 15 15 15 15 15 15 15 15 15 15 20 20 20 Average Carried 18 | . 5 10 11 21 21 22 21 23 23 24 25 24 21 24 24 23 14 9 12 14 14 14 14 14 14 15 14 14 14 18 19 15 Final Capacity 25 | 8 25 25 25 25 25 25 25 25 25 25 25 25 25 25 25 25 10 10 15 15 15 15 15 15 15 15 15 15 15 20 20 5 Final Carried 25 | . 9 11 20 22 22 22 20 25 25 25 25 17 25 24 25 25 10 10 15 15 15 15 15 15 15 15 15 15 15 20 20 4 Class Distribution -------------------- 27% | Scavenger-Mutant 20% | Hacker-Mutant 12% | Scavenger-Tank 10% | Scavenger-Gunner 7% | Mutant 6% | Commander-Mutant 5% | Hacker-Assassin 3% | Tank Dominant Class ---------------- Mutant | -10/Materials Mutant | -10/Mines Scavenger-Tank | -9/Materials Tank | -9/Mines Tank | -9/Exiles Skirmisher | -8/Mines Skirmisher | -8/Materials Scavenger-Mutant | -8/Garrison Scavenger-Mutant | -8/Materials Hacker-Mutant | -8/Storage Hacker-Mutant | -8/Recycling Hacker-Assassin | -6/Factory Commander-Mutant | -6/Extension Commander-Mutant | -6/Cetus Commander-Mutant | -6/Archives Scavenger-Mutant | -6/Hub_04(d) Scavenger-Mutant | -5/Factory Scavenger-Mutant | -5/Waste Scavenger-Mutant | -5/Factory Scavenger-Mutant | -5/Upper Caves Scavenger-Mutant | -5/Upper Caves Scavenger-Mutant | -5/Zhirov Scavenger-Mutant | -4/Proximity Caves Hacker-Mutant | -4/Factory Hacker-Mutant | -4/Upper Caves Hacker-Mutant | -4/Upper Caves Hacker-Mutant | -4/Warlord Hacker-Mutant | -3/Proximity Caves Hacker-Mutant | -3/Research Scavenger-Gunner | -2/Research Scavenger-Gunner | -1/Access Scavenger-Tank | -1/Command Resources | -11 -10 -10 -9 -9 -9 -8 -8 -8 -8 -8 -8 -6 -6 -6 -6 -6 -5 -5 -5 -5 -5 -5 -4 -4 -4 -4 -4 -3 -3 -2 -1 -1 ----------- Run | Yrd Mat Min Mat Min Exi Min Mat Gar Mat Sto Rec Fac Ext Cet Arc Hub Fac Was Fac Upp Upp Zhi Pro Fac Upp Upp War Pro Res Res Acc Com Matter Collected 20491 | 206 383 1 772 10 . 21 569 353 410 225 110 1370 581 40 . 715 978 153 563 257 50 37 100 852 465 84 152 246 971 494 5878 3445 Remotely . | . . . . . . . . . . . . . . . . . . . . . . . . . . . . . . . . . Salvage Created 26879 | . 432 13 1686 . . 23 1010 1483 955 256 246 1686 787 47 31 2098 1414 . 1008 64 63 37 59 597 319 81 106 159 924 260 7449 3586 Parts 1259 | . 31 4 115 . . . 53 51 65 17 18 77 29 1 3 70 58 . 45 4 3 1 6 33 6 2 6 11 43 12 372 123 Haulers Intercepted 13 | . 1 . 3 . . . 2 . 1 . . 2 1 . . . . . 1 . . . . . . . . . 1 . 1 . Recyclers Shooed 8 | . 1 . . . . . 2 . . . . . 1 . . . 1 . 1 . . . . . . . . . . . 1 1 Parts Field Recycled . | . . . . . . . . . . . . . . . . . . . . . . . . . . . . . . . . . Retrieved Matter . | . . . . . . . . . . . . . . . . . . . . . . . . . . . . . . . . . Parts Self-Destructed 27 | . . . . . . . . . . . . . . . . . . . . 3 . 1 6 . 5 3 . 9 . . . . Prevented 3 | . . . . . . . . . . . . . . . . . . . . . 3 . . . . . . . . . . . Parts Restored . | . . . . . . . . . . . . . . . . . . . . . . . . . . . . . . . . . Kills | -11 -10 -10 -9 -9 -9 -8 -8 -8 -8 -8 -8 -6 -6 -6 -6 -6 -5 -5 -5 -5 -5 -5 -4 -4 -4 -4 -4 -3 -3 -2 -1 -1 ------- Run | Yrd Mat Min Mat Min Exi Min Mat Gar Mat Sto Rec Fac Ext Cet Arc Hub Fac Was Fac Upp Upp Zhi Pro Fac Upp Upp War Pro Res Res Acc Com Combat Hostiles Destroyed 409 | . 10 . 35 . . 3 22 22 23 4 3 33 13 . . 34 19 . 9 3 1 . 1 10 9 1 2 6 11 3 88 44 Melee 39 | . . . . . . . 3 12 2 . . . . . . . 10 . 5 . . . 1 3 1 . . . . . . 2 Guns 174 | . 10 . 20 . . . 5 10 7 4 . . 2 . . 19 . . . . . . . . . . . . . 1 71 25 Cannons 124 | . . . 4 . . . 6 . 8 . 3 29 8 . . 8 7 . 3 3 1 . . 7 2 1 2 3 11 2 11 5 AOE 62 | . . . 11 . . 3 8 . 6 . . 3 3 . . 1 . . . . . . . . 6 . . 3 . . 6 12 Classes Destroyed 22 | . 5 1 5 . . . 1 1 1 . . 2 . . . 1 1 . . . . . . . . . 1 . . . 1 2 Worker 26 | . . . . . . . 1 . 2 1 . 2 . . . 2 1 . . . . . . . . . . . 2 1 10 4 Builder 15 | . . . 3 . . . 1 . 1 . 1 1 . . . . . . . . . . . 2 . . . . 1 . 5 . Tunneler 5 | . . 1 . . . . . . . . . 1 . . . . . . 1 . . . . . . . . . . . 2 . Hauler 13 | . 1 . 3 . . . 2 . 1 . . 2 1 . . . . . 1 . . . . . . . . . 1 . 1 . Recycler 21 | . . . 2 . . . 2 . . . 1 1 1 . . 3 2 . 2 . . . . . . . . . . . 4 3 Mechanic 1 | . . . 1 . . . . . . . . . . . . . . . . . . . . . . . . . . . . . Operator 15 | . 2 . 2 . . . 2 . 2 2 . 1 . . . . 1 . . . . . . 1 . . . . 2 . . . Watcher 34 | . 1 . 5 . . . 1 . 4 . . 2 . . . 2 1 . 5 . . . . 3 . . . . 2 1 6 1 Swarmer 88 | . 3 . 9 . . 3 7 4 5 . . 3 3 . . 10 . . . . . . . 1 8 . . 4 1 1 21 5 Saboteur 1 | . . . . . . . . . . . . . . . . . . . . . . . . . . . . . . . . 1 Grunt 131 | . 7 . 15 . . . 14 11 11 . . 13 3 . . 5 5 . 2 . . . . . . 1 . . 6 . 24 14 Brawler 5 | . . . . . . . . . . . . 1 . . . 2 . . . . . . . . . . . . . . 1 1 Duelist 11 | . . . 1 . . . . 4 . . . . . . . 1 1 . . . . . . . . . . . . . 1 3 Protector 2 | . . . . . . . . . . . . . . . . 1 . . . . . . . . . . . . . . . 1 Sentry 55 | . . . 10 . . . 1 2 6 4 3 4 6 . . 6 2 . . . . . . 5 . . . . 2 2 2 . Specialist 2 | . . . . . . . . . . . . . . . . . . . . . . . . . . . . . . . 2 . Hunter 27 | . . . . . . . . . 1 . . 5 . . . 3 . . 1 . 1 . . . . . . . 2 . 14 . Programmer 68 | . . . . . . . . . . . . 7 . . . 2 10 . 5 3 . . 1 4 . . . 2 . . 23 11 Heavy 2 | . . . . . . . . . . . . . . . . . 1 . 1 . . . . . . . . . . . . . Behemoth 4 | . . . . . . . . 1 . . . . 1 . . 1 . . . . . . . . 1 . . . . . . . M Guard 1 | . . . . . . . . . . . . . . . . . . . . . . . . . . . . . . . . 1 Enhanced Q-Series 4 | . . . . . . . . . . . . . . . . . . . . . . . . . . . . . . . . 4 Lightning 3 | . . . . . . . . . . . . . . . . 3 . . . . . . . . . . . . . . . . Combat Programmer 2 | . . . . . . . . . . . . . . . . . . . . . . . . . . . . . . . . 2 Striker 2 | . . . . . . . . . . . . . . . . . . . . . . . . . . . 2 . . . . . Butcher 3 | . . . . . . . . . . . . . 2 1 . . . . . . . . . . . . . . . . . . Guerrilla 1 | . . . . . . . . . . . . . . . . . . . . . . . . . . . . . . . 1 . Best Kill Streak 16 | . 5 1 7 . . 3 7 9 6 1 2 5 3 . . 9 5 . 2 2 1 . 1 3 7 1 2 3 6 2 16 14 Combat Bots Only 14 | . 4 . 6 . . 3 4 9 4 1 2 4 3 . . 6 4 . 2 2 1 . 1 2 7 1 2 3 4 2 7 14 Max Kills in Single Turn 5 | . 2 1 3 . . 3 3 1 3 1 1 3 2 1 . 2 1 . 1 1 1 . 1 1 3 1 1 3 2 1 5 5 Gunslinging 2 | . 1 . 2 . . . . . . . . . . . . 1 . . . . . . . . . . . . . . 1 . Exploded 5 | . . . 2 . . 3 2 . 1 . . 2 2 . . 1 . . . . . . . . 3 . . 3 . . 4 5 Melee 1 | . . . . . . . 1 1 1 . . . . . . . 1 . 1 . . . 1 1 1 . . . . . . 1 Uniques/NPCs Destroyed 1 | . . . . . . . . . . . . . . . . . . . . . . . . . . . . . . . . 1 MAIN.C Shell (-1/Command) Combat | -11 -10 -10 -9 -9 -9 -8 -8 -8 -8 -8 -8 -6 -6 -6 -6 -6 -5 -5 -5 -5 -5 -5 -4 -4 -4 -4 -4 -3 -3 -2 -1 -1 -------- Run | Yrd Mat Min Mat Min Exi Min Mat Gar Mat Sto Rec Fac Ext Cet Arc Hub Fac Was Fac Upp Upp Zhi Pro Fac Upp Upp War Pro Res Res Acc Com Hostile Shots Fired 2946 | . 51 . 110 . . 4 103 152 105 12 4 216 209 16 . 285 147 . 25 21 3 . 10 77 35 9 3 28 25 7 692 597 Missed 832 | . 14 . 34 . . 2 17 33 29 5 . 65 82 2 . 76 35 . 6 7 1 . 4 21 17 8 2 9 8 1 193 161 Intercepted 5 | . . . . . . . . . . . . . . . . . . . . . . . . . . . . . . . . 5 Hits 2114 | . 37 . 76 . . 2 86 119 76 7 4 151 127 14 . 209 112 . 19 14 2 . 6 56 18 1 1 19 17 6 499 436 Melee 24 | . . . . . . . . 8 . . . 3 . . . 2 . . . . . . . . . . 1 . . . 3 7 Projectile 2090 | . 37 . 76 . . 2 86 111 76 7 4 148 127 14 . 207 112 . 19 14 2 . 6 56 18 1 . 19 17 6 496 429 AOE 32 | . . . . . . . . . . . . . . . . . 5 . 1 . . . . . . . . . . . . 26 Critical Strikes 145 | . 2 . 2 . . . 7 7 2 . . 5 1 2 . 3 10 . . . . . . 7 . . . . 2 . 71 24 Actively Blocked 6 | . . . . . . . . . . . . . . . . . . . . . . . . 6 . . . . . . . . Part Disruptions 16 | . . . . . . . . . . . . . . . . . 2 . . . . . 1 . . . . . . . 1 12 Actively Blocked 1 | . . . . . . . . . . . . . . . . . . . . . . . 1 . . . . . . . . . Damage Taken 36804 | . 437 . 1000 . . 16 1365 2063 1072 146 61 1577 1145 487 . 4018 1774 . 162 80 40 . 60 1100 334 . 83 195 342 136 7543 11568 Core 3107 | . 87 . 136 . . . 110 276 81 18 . 211 61 52 . 340 112 . 5 9 . . . 117 86 . 36 5 43 . 434 888 Absorbed by Shields 4723 | . . . . . . . . . . . . 553 185 . . . . . . . . . . . . . . . . 48 1895 2042 Reduced by Siege Mode 902 | . . . . . . . . . . . . . . . . . . . . . . . . . . . . . . . . 902 Redirected to Shielding 424 | . . . . . . . . . . . . . 21 . . 7 115 . 57 10 12 . 14 153 . . . . . . 35 . Ignored by Resistances 3983 | . . . . . . . . . . . . . . . . 27 1188 . 301 197 . . 65 87 . . . 254 . . 1640 224 Regen/Repaired (Parts) 1290 | . . . 39 . . . . . 64 . . 328 . . . . 56 46 175 . . 21 13 33 39 3 13 45 35 58 322 . Core Remaining (%) 63 | 100 . 65 . . . 66 . . . . 11 . . . . 21 . . . . . . 87 . . . . 78 96 100 . 14 Volleys Fired 1202 | . 71 1 101 . . 1 58 45 54 15 7 106 48 12 . 126 48 . 20 10 2 . . 47 12 1 7 14 30 6 210 150 Largest 4 | . 2 2 3 . . 1 3 2 2 2 1 1 2 2 . 3 1 . 1 1 1 . . 2 2 2 2 3 2 4 4 4 Hottest 280 | . 70 60 114 . . 33 166 124 170 105 50 50 160 160 . 265 70 . 70 65 70 . . 112 112 112 112 182 112 192 192 280 Shots Fired 2536 | . 118 2 266 . . 1 129 66 84 23 8 106 56 24 . 250 50 . 20 11 2 . 1 59 22 2 14 29 61 20 681 431 Gun 1647 | . 118 2 227 . . . 78 49 38 16 . . 16 24 . 175 . . . . . . . . . . . . . 8 587 309 Cannon 836 | . . . 29 . . . 40 17 35 7 8 104 37 . . 74 50 . 20 11 2 . 1 59 20 2 14 28 61 12 92 113 Launcher 51 | . . . 10 . . 1 11 . 11 . . 2 3 . . 1 . . . . . . . . 2 . . 1 . . 2 7 Special 2 | . . . . . . . . . . . . . . . . . . . . . . . . . . . . . . . . 2 Kinetic 1790 | . 71 1 155 . . . 78 29 10 10 8 104 37 . . 35 . . 3 11 . . . 57 20 2 14 28 61 20 679 357 Thermal 601 | . 47 1 101 . . . 40 37 63 13 . . 16 24 . 214 . . . . . . . . . . . . . . . 45 Explosive 42 | . . . 10 . . 1 11 . 11 . . 2 3 . . 1 . . . . . . . . 2 . . 1 . . . . Electromagnetic 76 | . . . . . . . . . . . . . . . . . 50 . 17 . 2 . 1 2 . . . . . . . 4 Entropic 25 | . . . . . . . . . . . . . . . . . . . . . . . . . . . . . . . 2 23 Robot Hit Streak 45 | . 6 2 9 . . 8 12 17 18 9 3 12 15 19 . 16 13 . 11 11 1 . . 15 8 1 7 4 13 16 45 26 Robot Miss Streak 6 | . 4 . 6 . . . 3 5 5 5 1 2 2 2 . 5 2 . 2 . 1 . 1 1 2 1 2 2 2 3 5 4 Penetration Max 4 | . . . . . . . . . . . . 1 1 . . . 1 . 1 . . . . . . . 1 . 2 . 4 3 Secondary Targets 29 | . 2 . 4 . . . . 2 . . . . . . . 3 . . . . . . . . . . . . . . 14 4 Max Gunslinging Chain 2 | . 1 . 2 . . . . 1 . . . . . . . 1 . . . . . . . . . . . . . . 2 1 Shots Hit Robots 1945 | . 65 1 150 . . 1 84 104 68 19 9 81 44 24 1 188 81 . 50 10 1 1 3 59 25 1 11 15 52 15 442 340 Core Hits 1036 | . 29 1 81 . . 3 46 52 57 11 4 47 38 13 1 121 30 . 17 3 1 1 2 18 13 1 4 6 22 7 223 184 Critical Kills 125 | . . . . . . . . . . . . . . . . 2 . . . . . . . 2 1 1 2 2 14 3 80 18 Critical Parts Destroyed 185 | . . . . . . . . . . . . . . . . . . . . . . . . 5 4 . 2 10 21 . 106 37 Critical Strikes 400 | . . . 2 . . . . 6 1 1 1 14 3 . . 4 9 . 6 1 1 . . 16 7 1 6 12 40 4 192 73 Burn 4 | . . . 2 . . . . . . . . . . . . 2 . . . . . . . . . . . . . . . . Meltdown 2 | . . . . . . . . . . . . . . . . 2 . . . . . . . . . . . . . . . . Destroy 320 | . . . . . . . . . . . . . . . . . . . . . . . . 7 6 1 6 12 39 3 186 60 Blast 37 | . . . . . . . . . . . 1 14 3 . . . . . . 1 . . . 5 . . . . . . 6 7 Corrupt 8 | . . . . . . . . . . . . . . . . . 4 . 1 . 1 . . 1 . . . . . . . 1 Sever 11 | . . . . . . . . 6 1 1 . . . . . . 2 . . . . . . . . . . . . 1 . . Impale 13 | . . . . . . . . . . . . . . . . . 3 . 5 . . . . 3 1 . . . 1 . . . Sunder 5 | . . . . . . . . . . . . . . . . . . . . . . . . . . . . . . . . 5 Melee Attacks 402 | . . . . . . . 7 91 16 9 4 21 4 . 1 17 72 . 52 . . 1 5 35 10 . 1 1 15 9 9 22 Impact . | . . . . . . . . . . . . . . . . . . . . . . . . . . . . . . . . . Slashing 235 | . . . . . . . 7 91 16 9 4 21 4 . 1 17 24 . . . . . . . . . . . 1 9 9 22 Piercing 167 | . . . . . . . . . . . . . . . . . 48 . 52 . . 1 5 35 10 . 1 1 14 . . . Sneak Attacks 40 | . . . . . . . . . 6 2 4 5 3 . . 1 4 . 8 . . . . 1 . . . . 4 1 1 . Combat Hostiles 3 | . . . . . . . . . . . . . . . . . 1 . 2 . . . . . . . . . . . . . Follow-up Attacks 2 | . . . . . . . . . . . . . . . . . . . . . . . . . . . . . . 2 . . Damage Inflicted 67968 | . 701 12 3066 . . 139 2657 3965 2923 629 562 4869 2615 665 92 4915 3332 . 2419 840 51 58 90 2745 1863 24 248 734 1287 573 9400 16494 Guns 20677 | . 701 12 1645 . . . 700 696 685 272 . . 386 665 . 3161 . . . . . . . . . . . . . 51 6214 5489 Cannons 22894 | . . . 397 . . . 628 80 665 127 263 4211 1492 . . 1529 1539 . 862 840 51 . . 2334 260 24 216 357 870 78 1720 4351 Explosions 12522 | . . . 1024 . . 139 1099 . 1001 . . 277 465 . . 186 165 . 51 . . . . . 986 . . 377 . . 1318 5434 Melee 11869 | . . . . . . . 230 3189 572 230 299 381 272 . 92 39 1628 . 1506 . . 58 90 411 617 . 32 . 417 444 142 1220 Ramming 6 | . . . . . . . . . . . . . . . . . . . . . . . . . . . . . . . 6 . Kinetic 29384 | . 304 . 1021 . . . 700 245 100 193 263 4211 1492 . . 279 . . 73 840 . . . 2212 260 24 216 357 870 129 7934 7661 Thermal 10737 | . 397 12 1021 . . . 628 531 1250 206 . . 386 665 . 4411 . . 51 . . . . . . . . . . . . 1179 Explosive 5719 | . . . 1024 . . 139 1099 . 1001 . . 277 465 . . 186 165 . . . . . . . 986 . . 377 . . . . Electromagnetic 2664 | . . . . . . . . . . . . . . . . . 1539 . 789 . 51 . . 122 . . . . . . 105 58 Impact . | . . . . . . . . . . . . . . . . . . . . . . . . . . . . . . . . . Slashing 7704 | . . . . . . . 230 3189 572 230 299 381 272 . 92 39 594 . . . . . . . . . . . . 444 142 1220 Piercing 4165 | . . . . . . . . . . . . . . . . . 1034 . 1506 . . 58 90 411 617 . 32 . 417 . . . Entropic 7589 | . . . . . . . . . . . . . . . . . . . . . . . . . . . . . . . 1213 6376 Highest Corruption 18 | . . . . . . . 2 2 6 6 6 4 4 . . 8 6 1 2 5 5 5 5 . . . . . 9 . 4 18 Average Corruption 3 | . . . . . . . 2 2 3 6 6 1 3 . . 3 2 1 1 2 5 5 5 . . . . . 6 . 2 7 Corruption Purged 58 | . . . . . . . . . . . . . 4 . . 2 6 . . . . . . . . . . . 5 . 10 31 Corruption Blocked 29 | . . . . . . . . . . . . . . . . 8 . . . . . . . . . . . . . 21 . . Effects 308 | . . . . . . . 6 18 15 19 30 41 18 . . 35 20 . 16 5 3 3 4 . . . . . 30 . 13 32 Message Errors 72 | . . . . . . . . 4 5 3 12 3 7 . . 7 6 . 2 2 . 1 1 . . . . . 8 . 3 8 Matter Fused 81 | . . . . . . . 2 7 3 2 6 9 5 . . 11 6 . 5 1 1 . 1 . . . . . 9 . 3 10 Heat Flow Errors 38 | . . . . . . . 1 1 2 4 5 5 2 . . 7 . . 3 . . 1 . . . . . . 4 . 1 2 Energy Discharges 19 | . . . . . . . 1 2 1 2 2 1 1 . . 3 2 . 2 . . . . . . . . . 1 . . 1 Parts Fused 3 | . . . . . . . . . . . . 2 . . . . . . . . . . . . . . . . . . . 1 Data Loss (minor) 31 | . . . . . . . . . 2 2 1 9 2 . . 3 1 . 1 1 . 1 1 . . . . . 4 . . 3 Data Loss (major) 29 | . . . . . . . 1 2 1 3 1 6 . . . 1 3 . 2 . 2 . . . . . . . 3 . 2 2 Misfires 10 | . . . . . . . . . . . 1 2 . . . 2 2 . . 1 . . 1 . . . . . 1 . . . Alerts 15 | . . . . . . . 1 2 . 3 2 2 1 . . . . . 1 . . . . . . . . . . . 3 . Weapon Failures 10 | . . . . . . . . . 1 . . 2 . . . 1 . . . . . . . . . . . . . . 1 5 Overload Shots . | . . . . . . . . . . . . . . . . . . . . . . . . . . . . . . . . . Overflow Damage 2832 | . . . 16 . . . 34 79 90 24 78 548 141 . . 32 294 . 324 95 . . . 171 340 . . . 177 . 157 232 Projectiles 1080 | . . . . . . . 25 . 1 . . 458 35 . . 8 151 . 45 95 . . . 171 . . . . . . 73 18 Explosions 533 | . . . 16 . . . 9 . 47 . . . 45 . . 24 13 . . . . . . . 121 . . . . . 84 174 Melee 1219 | . . . . . . . . 79 42 24 78 90 61 . . . 130 . 279 . . . . . 219 . . . 177 . . 40 Knockbacks 87 | . . . . . . . . . . 2 . 20 7 . . . . . . 6 . . . 11 . . 1 2 1 . 18 19 Impact . | . . . . . . . . . . . . . . . . . . . . . . . . . . . . . . . . . Kinetic 82 | . . . . . . . . . . 1 . 17 7 . . . . . . 6 . . . 10 . . 1 2 1 . 18 19 Secondary 5 | . . . . . . . . . . 1 . 3 . . . . . . . . . . . 1 . . . . . . . . Self-Inflicted Damage 612 | . . . 33 . . . 167 . 33 . . . 26 . . 53 112 . . . . . . . . . . . . . 188 . Shots 13 | . . . 1 . . . 6 . 1 . . . 1 . . 1 1 . . . . . . . . . . . . . 2 . Rammed . | . . . . . . . . . . . . . . . . . . . . . . . . . . . . . . . . . Targets Rammed 2 | . . . . . . . . . . . . . . . . . . . . . . . . . . . . . . . 2 . Kicked 2 | . . . . . . . . . . . . . . . . . . . . . . . . . . . . . . . 2 . Crushed . | . . . . . . . . . . . . . . . . . . . . . . . . . . . . . . . . . Highest Temperature 414 | . 163 20 279 . . . 240 320 322 329 270 264 252 196 . 414 11 . 241 192 . 229 34 11 . . . . 211 108 232 194 Average Temperature 87 | . 50 15 74 . . . 88 122 104 92 93 90 77 72 . 102 4 . 84 85 . 110 23 3 . . . . 83 43 68 76 Received Heat Transfer 5576 | . 213 . 375 . . . 711 795 396 54 18 232 331 18 . 321 165 . 12 . . . . 105 18 . . . 70 12 272 1458 Effects 10 | . . . . . . . 1 5 1 1 . . . . . 2 . . . . . . . . . . . . . . . . Energy Bleed 4 | . . . . . . . 1 . . 1 . . . . . 2 . . . . . . . . . . . . . . . . Interference 5 | . . . . . . . . 5 . . . . . . . . . . . . . . . . . . . . . . . . Damage (minor) 1 | . . . . . . . . . 1 . . . . . . . . . . . . . . . . . . . . . . . Siege Activations 7 | . . . . . . . . . . . . . . . . . . . . . . . . . . . . . . . . 7 Total Turns 250 | . . . . . . . . . . . . . . . . . . . . . . . . . . . . . . . . 250 Longest Duration 64 | . . . . . . . . . . . . . . . . . . . . . . . . . . . . . . . . 64 Martial Activations . | . . . . . . . . . . . . . . . . . . . . . . . . . . . . . . . . . Shielding Activations 1 | . . . . . . . . . . . . . . . . . . . . . . . . . . . . . . . 1 . Total Turns 6 | . . . . . . . . . . . . . . . . . . . . . . . . . . . . . . . 6 . Longest Duration 6 | . . . . . . . . . . . . . . . . . . . . . . . . . . . . . . . 6 . Robots Disrupted . | . . . . . . . . . . . . . . . . . . . . . . . . . . . . . . . . . Combat Hostiles . | . . . . . . . . . . . . . . . . . . . . . . . . . . . . . . . . . Robots Corrupted 7 | . . . . . . . . . . . . 1 . . . . 3 . 1 . . . . 2 . . . . . . . . Combat Hostiles 4 | . . . . . . . . . . . . 1 . . . . 2 . 1 . . . . . . . . . . . . . Parts Fried 25 | . . . . . . . . . . . . 2 . . . . 13 . 4 . 1 . . 4 . . . . . . 1 . Impact Corruptions 3 | . . . . . . . . . . . . 2 . . . . . . . . . . . 1 . . . . . . . . Robots Melted 7 | . . . . . . . . . . . . . . . . 7 . . . . . . . . . . . . . . . . Combat Hostiles 6 | . . . . . . . . . . . . . . . . 6 . . . . . . . . . . . . . . . . Parts Melted 34 | . 1 . 4 . . . 1 2 2 . . 1 6 . . 14 . . 1 . . . . . . . . . . . 2 . Heat Transferred 20876 | . 1052 25 2290 . . . 1036 1200 2275 400 . . 837 1525 . 9076 . . 50 . . . . . . . . . . . . 1110 Parts Sabotaged . | . . . . . . . . . . . . . . . . . . . . . . . . . . . . . . . . . Parts Stolen . | . . . . . . . . . . . . . . . . . . . . . . . . . . . . . . . . . Parts Stripped . | . . . . . . . . . . . . . . . . . . . . . . . . . . . . . . . . . Power Chain Reactions 1 | . . . . . . . . . . . . . . . . . . . 1 . . . . . . . . . . . . . Alert | -11 -10 -10 -9 -9 -9 -8 -8 -8 -8 -8 -8 -6 -6 -6 -6 -6 -5 -5 -5 -5 -5 -5 -4 -4 -4 -4 -4 -3 -3 -2 -1 -1 ------- Run | Yrd Mat Min Mat Min Exi Min Mat Gar Mat Sto Rec Fac Ext Cet Arc Hub Fac Was Fac Upp Upp Zhi Pro Fac Upp Upp War Pro Res Res Acc Com Maximum Alert Level 5 | . . . 2 1 . . 1 4 3 1 1 2 2 1 2 1 1 . 2 . . . . . . . . . . . 5 5 Low Security (%) 42 | 100 100 100 6 82 . 100 47 . . 92 96 2 . 30 69 75 71 100 35 . . . . 100 . . . . 100 100 17 23 Level 1 26 | . . . 31 17 . . 52 21 9 7 3 77 58 69 20 24 28 . 59 . . . . . . . . . . . 10 . Level 2 15 | . . . 61 . . . . 34 40 . . 20 41 . 10 . . . 5 . . . . . . . . . . . 25 . Level 3 4 | . . . . . . . . 13 50 . . . . . . . . . . . . . . . . . . . . . 9 . Level 4 6 | . . . . . . . . 29 . . . . . . . . . . . . . . . . . . . . . . 26 33 Level 5 3 | . . . . . . . . . . . . . . . . . . . . . . . . . . . . . . . 9 42 High Security . | . . . . . . . . . . . . . . . . . . . . . . . . . . . . . . . 1 . Max Security . | . . . . . . . . . . . . . . . . . . . . . . . . . . . . . . . . . Peak Influence 1945 | . 166 9 614 229 . 79 319 1253 865 315 203 678 625 308 503 357 310 107 408 . . . . 160 . . . . 167 53 1842 1945 Initial 1178 | . . 9 . 229 . . . 202 610 104 106 404 330 216 85 137 39 107 18 . . . . 12 . . . . 40 13 . 1178 Average 384 | . 69 . 415 149 . 14 157 730 649 80 103 334 389 221 185 119 125 70 254 . . . . 89 . . . . 65 3 815 1354 Influence Increases 18421 | . 380 5 1382 . . 79 669 1171 770 735 280 1502 1056 352 528 1081 812 . 1181 80 30 5 30 597 301 115 221 140 639 110 2809 1361 Destroy 0b10 Robot/C 9800 | . 200 . 800 . . 60 440 520 460 340 60 660 520 160 260 660 380 . 480 60 20 . 20 240 200 40 180 120 320 60 1760 780 Destroy 0b10 Robot/NC 765 | . 20 5 80 . . . 45 30 50 15 10 50 30 10 5 40 25 . 65 . . 5 . 30 5 . . . 45 10 140 50 Destroy Leader 1920 | . 54 . 206 . . 10 86 30 130 110 . 208 44 . . 174 112 . 116 20 10 . 10 66 30 . . 20 46 22 294 122 Allied During Kill 1409 | . . . 16 . . . . 22 . 202 . . 394 170 256 . . . 309 . . . . 4 6 . 26 . 4 . . . Trap Triggered on 0b10 10 | . . . . . . . . . . . . . . . . . . . . . . . . . . . . . 10 . . . Successful Hack 746 | . 17 . 63 . . . 8 44 13 31 25 42 13 . . 29 66 . 101 . . . . 92 . . . . 83 . 105 14 Select Force Hacks 180 | . . . . . . . . . . . 180 . . . . . . . . . . . . . . . . . . . . . Disable Machine 600 | . 30 . 60 . . . 15 30 45 15 . 75 . . . 75 60 . 15 . . . . 75 . . . . . . 60 45 Anti-Garrison Action 350 | . . . . . . . . 350 . . . . . . . . . . . . . . . . . . . . . . . . Destroy Structure 1356 | . 14 . 97 . . 9 60 115 72 7 5 52 40 12 7 43 94 . 80 . . . . 60 . . . . 86 3 195 305 Advance Influence 400 | . . . . . . . . . . . . 400 . . . . . . . . . . . . . . . . . . . . Partial Spotted 120 | . . . 15 . . . . . . 15 . . . . . . 30 . . . . . . . . . . . 45 15 . . Lose Combat Pursuer 765 | . 45 . 45 . . . 15 30 . . . 15 15 . . 60 45 . 15 . . . . 30 60 75 15 . . . 255 45 Influence Decreases 16550 | . 356 29 792 521 69 79 358 229 1775 710 540 840 1343 526 349 1393 587 279 1000 248 70 5 10 500 235 156 331 112 675 134 967 1332 Entered New Map 3713 | . . 15 . 361 69 . . 109 643 144 167 9 345 172 129 256 42 199 9 78 8 . . 8 45 36 142 32 20 11 . 664 Time Decay 8493 | . 326 14 552 160 . 79 298 . 482 280 373 691 538 254 40 592 485 80 531 170 62 5 10 392 170 100 67 80 404 123 637 498 Search Patrol Dispatched 100 | . . . . . . . . . . . . 100 . . . . . . . . . . . . . . . . . . . . Lost Part 1192 | . 30 . 70 . . . 60 80 50 10 . 40 60 . . 212 60 . . . . . . 20 . . . . . . 330 170 Lost Ally 1352 | . . . 20 . . . . 40 . 200 . . 100 100 180 . . . 310 . . . . 80 20 20 122 . 160 . . . Purge Threat 1700 | . . . 150 . . . . . 600 76 . . 300 . . 333 . . 150 . . . . . . . . . 91 . . . Squads Dispatched 99 | . 4 . 3 . . . 4 . 4 3 . 15 1 . . 10 4 . 7 . . . . 7 . . . . 7 1 21 8 Investigation 15 | . 3 . 1 . . . . . 3 . . 1 . . . 1 . . 1 . . . . 1 . . . . 3 . 1 . Extermination 29 | . . . . . . . . . . . . 6 . . . 3 3 . 3 . . . . 3 . . . . . . 8 3 Reinforcement 33 | . 1 . 1 . . . 2 . 1 1 . 6 1 . . 3 1 . 2 . . . . 2 . . . . 4 1 6 1 Assault 15 | . . . 1 . . . . . . 2 . 2 . . . . . . . . . . . . . . . . . . 6 4 Garrison 7 | . . . . . . . 2 . . . . . . . . 3 . . 1 . . . . 1 . . . . . . . . Intercept . | . . . . . . . . . . . . . . . . . . . . . . . . . . . . . . . . . Searches Triggered 1 | . . . . . . . . . . . . 1 . . . . . . . . . . . . . . . . . . . . Unchained Authorized 2 | . . . . . . . . . . . . . . . . . . . . . . . . 1 . . . . . . 1 . Construction Impeded 3 | . . . . . . . . . . . . 1 1 . . 1 . . . . . . . . . . . . . . . . Haulers Reinforced 9 | . . . . . . . . . . . . 2 . . . 1 . . 1 . . . . . . . . . 2 1 2 . Active Scanning Responses . | . . . . . . . . . . . . . . . . . . . . . . . . . . . . . . . . . Cargo Convoy Interrupts 1 | . . . . . . . . . . . . . . . . . 1 . . . . . . . . . . . . . . . Stealth | -11 -10 -10 -9 -9 -9 -8 -8 -8 -8 -8 -8 -6 -6 -6 -6 -6 -5 -5 -5 -5 -5 -5 -4 -4 -4 -4 -4 -3 -3 -2 -1 -1 --------- Run | Yrd Mat Min Mat Min Exi Min Mat Gar Mat Sto Rec Fac Ext Cet Arc Hub Fac Was Fac Upp Upp Zhi Pro Fac Upp Upp War Pro Res Res Acc Com Distress Signals 58 | . 4 . 7 . . . . . 2 3 . . 2 2 . 4 2 . 4 . . . . 5 . . 1 . 5 4 3 10 Communications Jammed . | . . . . . . . . . . . . . . . . . . . . . . . . . . . . . . . . . Distress Signals . | . . . . . . . . . . . . . . . . . . . . . . . . . . . . . . . . . Times Spotted 697 | . 28 6 61 . . 3 28 29 34 24 2 40 27 11 . 44 26 . 17 3 1 . 1 26 14 4 29 3 24 14 127 71 Peak Tracking Total 12 | . 6 6 10 . . 3 5 9 5 12 1 4 6 5 . 5 5 . 2 2 1 . 1 4 7 4 12 2 5 6 7 11 Tactical Retreats 36 | . 3 . 1 . . . 1 2 . . . 1 1 . . 3 2 . 1 . . . . 2 1 3 1 . . . 10 4 Traps | -11 -10 -10 -9 -9 -9 -8 -8 -8 -8 -8 -8 -6 -6 -6 -6 -6 -5 -5 -5 -5 -5 -5 -4 -4 -4 -4 -4 -3 -3 -2 -1 -1 ------- Run | Yrd Mat Min Mat Min Exi Min Mat Gar Mat Sto Rec Fac Ext Cet Arc Hub Fac Was Fac Upp Upp Zhi Pro Fac Upp Upp War Pro Res Res Acc Com Traps Triggered 38 | . 2 . . . . . . 7 2 1 . 4 2 . . 1 3 . 4 . . . . 5 . . . . 5 . 2 . Indirectly . | . . . . . . . . . . . . . . . . . . . . . . . . . . . . . . . . . Trap Hack Attempts . | . . . . . . . . . . . . . . . . . . . . . . . . . . . . . . . . . Triggered . | . . . . . . . . . . . . . . . . . . . . . . . . . . . . . . . . . Disarmed 8 | . . . . . . . . . . . . . 6 . . 2 . . . . . . . . . . . . . . . . Reprogrammed 6 | . . . . . . . . . . . . . . . . . . . . . . . . . . . . . 6 . . . Reused 1 | . . . . . . . . . . . . . . . . . . . . . . . . . . . . . 1 . . . Traps Extracted . | . . . . . . . . . . . . . . . . . . . . . . . . . . . . . . . . . Installed . | . . . . . . . . . . . . . . . . . . . . . . . . . . . . . . . . . Triggered 1 | . . . . . . . . . . . . . . . . . . . . . . . . . . . . . 1 . . . Machines | -11 -10 -10 -9 -9 -9 -8 -8 -8 -8 -8 -8 -6 -6 -6 -6 -6 -5 -5 -5 -5 -5 -5 -4 -4 -4 -4 -4 -3 -3 -2 -1 -1 ---------- Run | Yrd Mat Min Mat Min Exi Min Mat Gar Mat Sto Rec Fac Ext Cet Arc Hub Fac Was Fac Upp Upp Zhi Pro Fac Upp Upp War Pro Res Res Acc Com Machines Disabled 53 | . 2 . 4 . . . 1 9 3 1 . 5 4 . . 5 4 . 1 . . . . 5 1 . . . . . 4 4 Max in Single Turn 2 | . 2 . 2 . . . 1 2 1 1 . 1 1 . . 2 1 . 1 . . . . 1 . . . . . . 2 1 Garrison Access 15 | . . . . . . . . . 1 1 . 2 . . . 1 1 . 2 . . . . 1 . . . . 3 3 . . Garrison Relay 3 | . . . . . . . . 3 . . . . . . . . . . . . . . . . . . . . . . . . Phase Generator 1 | . . . . . . . . 1 . . . . . . . . . . . . . . . . . . . . . . . . Network Hub 1 | . . . . . . . . . . . . . . . . 1 . . . . . . . . . . . . . . . . Machines Repaired . | . . . . . . . . . . . . . . . . . . . . . . . . . . . . . . . . . Machines Dismantled 2 | . . . . . . . . . . . . . . . . 1 . . . . . . . . . . . . . . . 1 Machines Sabotaged . | . . . . . . . . . . . . . . . . . . . . . . . . . . . . . . . . . Overloaded Fab Kills . | . . . . . . . . . . . . . . . . . . . . . . . . . . . . . . . . . Hacking | -11 -10 -10 -9 -9 -9 -8 -8 -8 -8 -8 -8 -6 -6 -6 -6 -6 -5 -5 -5 -5 -5 -5 -4 -4 -4 -4 -4 -3 -3 -2 -1 -1 --------- Run | Yrd Mat Min Mat Min Exi Min Mat Gar Mat Sto Rec Fac Ext Cet Arc Hub Fac Was Fac Upp Upp Zhi Pro Fac Upp Upp War Pro Res Res Acc Com Machines Accessed 175 | . 7 . 14 . 1 . 7 3 12 14 12 14 10 2 1 8 9 . 20 . . 5 . 9 1 . 6 . 8 1 9 2 Terminals 101 | . 5 . 10 . . . 5 3 8 12 6 8 10 2 . 7 1 . 8 . . . . 3 . . . . 4 . 7 2 Fabricators 11 | . . . . . . . . . . . . 1 . . . . 2 . 4 . . . . 3 . . . . . . 1 . Repair Stations 8 | . 1 . 1 . . . . . 1 . . 1 . . . . 2 . 2 . . . . . . . . . . . . . Recycling Units 18 | . 1 . 1 . . . . . 1 1 6 2 . . . . 2 . 2 . . . . 2 . . . . . . . . Scanalyzers 9 | . . . 2 . . . 1 . 1 . . . . . . . 1 . 2 . . . . . . . . . 1 . 1 . Garrison Access 14 | . . . . . . . 1 . 1 1 . 2 . . . 1 1 . 2 . . . . 1 . . . . 3 1 . . Total Hacks 542 | . 29 . 48 . 1 . 16 8 40 26 27 34 28 2 21 20 27 . 84 . . 18 . 34 1 . 14 . 32 3 24 5 Successful 306 | . 14 . 28 . 1 . 7 4 22 17 20 20 15 1 21 11 14 . 36 . . 18 . 18 1 . 14 . 13 1 8 2 Failed 232 | . 15 . 20 . . . 9 4 17 9 7 14 13 1 . 9 13 . 47 . . . . 16 . . . . 18 2 15 3 Catastrophic 42 | . 1 . 7 . . . 1 1 2 1 . 2 2 . . 2 5 . 6 . . . . 5 . . . . 3 1 3 . Database Lockouts 4 | . . . . . . . . . 1 . . . . . . . . . 1 . . . . . . . . . 1 . 1 . Manual 168 | . 22 . 19 . 1 . 10 2 10 11 17 8 8 1 . 2 4 . 28 . . . . 13 . . . . 6 . 1 5 Terminals 329 | . 23 . 38 . . . 12 8 29 24 15 19 28 2 . 19 1 . 43 . . . . 20 . . . . 24 . 19 5 Fabricators 39 | . . . . . . . . . . . . 3 . . . . 7 . 18 . . . . 9 . . . . . . 2 . Repair Stations 25 | . 2 . 3 . . . . . 2 . . 5 . . . . 8 . 5 . . . . . . . . . . . . . Recycling Units 37 | . 4 . 2 . . . . . 1 1 12 3 . . . . 5 . 6 . . . . 3 . . . . . . . . Scanalyzers 36 | . . . 5 . . . 2 . 7 . . . . . . . 5 . 9 . . . . . . . . . 5 . 3 . Garrison Access 21 | . . . . . . . 2 . 1 1 . 4 . . . 1 1 . 3 . . . . 2 . . . . 3 3 . . Terminal Hacks 162 | . 6 . 12 . 1 . . 4 10 10 4 6 12 1 21 9 . . 10 . . 18 . 7 1 . 14 . 8 . 6 2 Record 38 | . . . . . . . . . . . . . . . 21 . . . 1 . . 6 . . . . 7 . . . 2 1 Part Schematic 7 | . 1 . . . . . . . . . 1 . 1 . . . . . . . . 4 . . . . . . . . . . Robot Schematic 1 | . 1 . . . . . . . . . . . . . . . . . . . . . . . . . . . . . . . Robot Analysis 10 | . 3 . 2 . . . . . . . 1 . . . . . . . . . . 4 . . . . . . . . . . Prototype ID Bank 11 | . . . . . . . . . . . 1 . . . . . . . . . . 4 . . . . 5 . 1 . . . Open Door 20 | . . . . . . . . 1 . 4 . . 7 1 . . . . . . . . . . 1 . 2 . . . 4 . Level Access Points 2 | . . . . . . . . . 1 . . . . . . . . . . . . . . . . . . . 1 . . . Branch Access Points 6 | . . . 1 . . . . . 1 1 . 1 . . . . . . 1 . . . . 1 . . . . . . . . Emergency Access Points 2 | . . . . . . . . 1 . . . 1 . . . . . . . . . . . . . . . . . . . . Terminal Index 6 | . 1 . 1 . . . . . . 1 . . . . . 1 . . 1 . . . . 1 . . . . . . . . Scanalyzer Index 1 | . . . 1 . . . . . . . . . . . . . . . . . . . . . . . . . . . . . Alert Level 8 | . . . 1 . . . . . 2 . 1 2 . . . . . . 2 . . . . . . . . . . . . . Unreport Threat 15 | . . . 1 . . . . . 4 1 . . 2 . . 4 . . 1 . . . . . . . . . 2 . . . Locate Traps 14 | . . . 2 . . . . . 1 2 . . 1 . . 2 . . 3 . . . . 1 . . . . 1 . . 1 Disarm Traps 2 | . . . . . . . . . . . . . 1 . . 1 . . . . . . . . . . . . . . . . Reprogram Traps 1 | . . . . . . . . . . . . . . . . . . . . . . . . . . . . . 1 . . . Dispatch Records 1 | . . . . . . . . . . . . . . . . . . . . . . . . 1 . . . . . . . . Maintenance Status 1 | . . . . . . . . . . . . . . . . . . . . . . . . 1 . . . . . . . . Recall Reinforcements 1 | . . . . . . . . . . . . 1 . . . . . . . . . . . . . . . . . . . . Hauler Manifests 1 | . . . . . . . . . . . . . . . . . . . . . . . . 1 . . . . . . . . Registered Components 3 | . . . 1 . . . . . . . . . . . . . . . 1 . . . . 1 . . . . . . . . Registered Prototypes 2 | . . . 1 . . . . . . . . . . . . . . . . . . . . . . . . . 1 . . . Zone Layout 6 | . . . 1 . . . . . 1 1 . 1 . . . 1 . . . . . . . . . . . . 1 . . . Garrison Registry 1 | . . . . . . . . 1 . . . . . . . . . . . . . . . . . . . . . . . . Security Stations 1 | . . . . . . . . 1 . . . . . . . . . . . . . . . . . . . . . . . . Proto ID Catalog 1 | . . . . . 1 . . . . . . . . . . . . . . . . . . . . . . . . . . . Fabricator Hacks 12 | . . . . . . . . . . . . 1 . . . . 3 . 5 . . . . 3 . . . . . . . . Network Status 7 | . . . . . . . . . . . . 1 . . . . 2 . 2 . . . . 2 . . . . . . . . Load Schematic 1 | . . . . . . . . . . . . . . . . . . . 1 . . . . . . . . . . . . . Build 4 | . . . . . . . . . . . . . . . . . 1 . 2 . . . . 1 . . . . . . . . Repair Station Hacks 17 | . 1 . 2 . . . . . 2 . . 5 . . . . 3 . 4 . . . . . . . . . . . . . Scan Component 10 | . 1 . 1 . . . . . 1 . . 3 . . . . 2 . 2 . . . . . . . . . . . . . Repair 7 | . . . 1 . . . . . 1 . . 2 . . . . 1 . 2 . . . . . . . . . . . . . Recycling Unit Hacks 18 | . 1 . 2 . . . . . 1 1 5 2 . . . . 2 . 2 . . . . 2 . . . . . . . . Report Inventory 2 | . . . 1 . . . . . . . 1 . . . . . . . . . . . . . . . . . . . . . Retrieve Components 16 | . 1 . 1 . . . . . 1 1 4 2 . . . . 2 . 2 . . . . 2 . . . . . . . . Scanalyzer 26 | . . . 5 . . . 2 . 6 . . . . . . . 3 . 7 . . . . . . . . . 2 . 1 . Insert Component 5 | . . . 1 . . . . . 3 . . . . . . . . . 1 . . . . . . . . . . . . . Analyze 4 | . . . 1 . . . . . 2 . . . . . . . . . 1 . . . . . . . . . . . . . Retrieve Study 17 | . . . 3 . . . 2 . 1 . . . . . . . 3 . 5 . . . . . . . . . 2 . 1 . Garrison Access Hacks 14 | . . . . . . . 1 . 1 1 . 2 . . . 1 1 . 2 . . . . 1 . . . . 3 1 . . Unlock Access 1 | . . . . . . . 1 . . . . . . . . . . . . . . . . . . . . . . . . . Seal Access 13 | . . . . . . . . . 1 1 . 2 . . . 1 1 . 2 . . . . 1 . . . . 3 1 . . Unauthorized Hacks 57 | . 6 . 7 . . . 4 . 2 5 11 4 3 . . 1 2 . 6 . . . . 5 . . . . . . 1 . Terminals 42 | . 6 . 7 . . . 4 . 2 5 5 3 3 . . 1 . . 3 . . . . 2 . . . . . . 1 . Track 1 | . . . . . . . . . . . . . . . . . . . 1 . . . . . . . . . . . . . Assimilate 1 | . . . . . . . . . . . . 1 . . . . . . . . . . . . . . . . . . . . Botnet 33 | . 4 . 6 . . . 3 . 2 4 5 2 2 . . 1 . . 1 . . . . 2 . . . . . . 1 . Operators 6 | . 1 . 1 . . . 1 . . 1 . . 1 . . . . . 1 . . . . . . . . . . . . . Override 1 | . 1 . . . . . . . . . . . . . . . . . . . . . . . . . . . . . . . Fabricators 8 | . . . . . . . . . . . . . . . . . 2 . 3 . . . . 3 . . . . . . . . Prioritize 1 | . . . . . . . . . . . . . . . . . . . . . . . . 1 . . . . . . . . Fabnet 7 | . . . . . . . . . . . . . . . . . 2 . 3 . . . . 2 . . . . . . . . Repair Stations . | . . . . . . . . . . . . . . . . . . . . . . . . . . . . . . . . . Recycling Units 7 | . . . . . . . . . . . 6 1 . . . . . . . . . . . . . . . . . . . . Recyclers 1 | . . . . . . . . . . . . 1 . . . . . . . . . . . . . . . . . . . . Tunnel 6 | . . . . . . . . . . . 6 . . . . . . . . . . . . . . . . . . . . . Scanalyzers . | . . . . . . . . . . . . . . . . . . . . . . . . . . . . . . . . . Garrison Access . | . . . . . . . . . . . . . . . . . . . . . . . . . . . . . . . . . Data Cores Recovered 3 | . . . 1 . . . 1 . 1 . . . . . . . . . . . . . . . . . . . . . . . Used 1 | . . . . . . . . . 1 . . . . . . . . . . . . . . . . . . . . . . . Hacking Detections 121 | . 7 . 12 . . . 7 3 11 9 9 11 4 1 . 7 6 . 14 . . . . 7 . . . . 4 . 8 1 Full Trace Events 13 | . 1 . 3 . . . . . 3 . 2 . . . . 1 . . 1 . . . . . . . . . 1 . 1 . Feedback Events . | . . . . . . . . . . . . . . . . . . . . . . . . . . . . . . . . . Feedback Blocked . | . . . . . . . . . . . . . . . . . . . . . . . . . . . . . . . . . Robot Schematics Acquired 1 | . 1 . . . . . . . . . . . . . . . . . . . . . . . . . . . . . . . Robots Built 3 | . . . . . . . . . . . . . . . . . . . 3 . . . . . . . . . . . . . Authchips . | . . . . . . . . . . . . . . . . . . . . . . . . . . . . . . . . . Time 162 | . . . . . . . . . . . . . . . . . . . 162 . . . . . . . . . . . . . Total Robot Build Rating 3 | . . . . . . . . . . . . . . . . . . . 3 . . . . . . . . . . . . . Part Schematics Acquired 11 | . 1 . 1 . . . . . 2 . 1 . 1 . . . . . 1 . . 4 . . . . . . . . . . Parts Built 4 | . . . . . . . . . . . . . . . . . 2 . . . . . . 2 . . . . . . . . Authchips . | . . . . . . . . . . . . . . . . . . . . . . . . . . . . . . . . . Time 245 | . . . . . . . . . . . . . . . . . 106 . . . . . . 139 . . . . . . . . Total Part Build Rating 30 | . . . . . . . . . . . . . . . . . 12 . . . . . . 18 . . . . . . . . Part Studies Acquired 16 | . . . 3 . . . 2 . . . . . . . . . 3 . 5 . . . . . . . . . 2 . 1 . Parts Repaired 6 | . . . 1 . . . . . 1 . . 2 . . . . . . 2 . . . . . . . . . . . . . Time 287 | . . . 26 . . . . . 44 . . 82 . . . . 54 . 81 . . . . . . . . . . . . . Parts Recycled . | . . . . . . . . . . . . . . . . . . . . . . . . . . . . . . . . . Recycled Matter . | . . . . . . . . . . . . . . . . . . . . . . . . . . . . . . . . . Retrieved Matter . | . . . . . . . . . . . . . . . . . . . . . . . . . . . . . . . . . Retrieved Components 76 | . 5 . 9 . . . . . 6 10 12 5 . . . . 16 . 13 . . . . . . . . . . . . . Parts Scanalyzed 4 | . . . 1 . . . . . 2 . . . . . . . . . 1 . . . . . . . . . . . . . Part Schematics Acquired 4 | . . . 1 . . . . . 2 . . . . . . . . . 1 . . . . . . . . . . . . . Parts Damaged 1 | . . . 1 . . . . . . . . . . . . . . . . . . . . . . . . . . . . . Bothacking | -11 -10 -10 -9 -9 -9 -8 -8 -8 -8 -8 -8 -6 -6 -6 -6 -6 -5 -5 -5 -5 -5 -5 -4 -4 -4 -4 -4 -3 -3 -2 -1 -1 ------------ Run | Yrd Mat Min Mat Min Exi Min Mat Gar Mat Sto Rec Fac Ext Cet Arc Hub Fac Was Fac Upp Upp Zhi Pro Fac Upp Upp War Pro Res Res Acc Com Used RIF Installer . | . . . . . . . . . . . . . . . . . . . . . . . . . . . . . . . . . Robots Hacked 43 | . . . . . . . . . . . . . . . . . . . . . . . 1 6 2 1 18 . 13 1 . 1 Non-combat . | . . . . . . . . . . . . . . . . . . . . . . . . . . . . . . . . . Combat 43 | . . . . . . . . . . . . . . . . . . . . . . . 1 6 2 1 18 . 13 1 . 1 Robot Hacks Applied 1 | . . . . . . . . . . . . . . . . . . . . . . . . . . . . . . . . 1 parse_system 1 | . . . . . . . . . . . . . . . . . . . . . . . . . . . . . . . . 1 Manual 1 | . . . . . . . . . . . . . . . . . . . . . . . . . . . . . . . . 1 Relay Couplers Released 12 | . . . . . . . . 10 . . . . . . . . . . . . . . . . . . . . . 2 . . Machine Destruction 12 | . . . . . . . . 10 . . . . . . . . . . . . . . . . . . . . . 2 . . Fabnet Peak Effective % 15 | . . . . . . . . . . . . . . . . . . . . . . . 15 15 15 15 15 8 8 1 . . Autooverrided 42 | . . . . . . . . . . . . . . . . . . . . . . . 1 6 2 1 18 . 13 1 . . Robots Rewired 24 | . . . . . . . . . . . . . 19 . . . . . . . . . . . . . 5 . . . . . Allies Hacked 2 | . . . . . . . . . . . . . . . . . . . 2 . . . . . . . . . . . . . Hacks Repelled . | . . . . . . . . . . . . . . . . . . . . . . . . . . . . . . . . . Allies | -11 -10 -10 -9 -9 -9 -8 -8 -8 -8 -8 -8 -6 -6 -6 -6 -6 -5 -5 -5 -5 -5 -5 -4 -4 -4 -4 -4 -3 -3 -2 -1 -1 -------- Run | Yrd Mat Min Mat Min Exi Min Mat Gar Mat Sto Rec Fac Ext Cet Arc Hub Fac Was Fac Upp Upp Zhi Pro Fac Upp Upp War Pro Res Res Acc Com Total Allies 120 | . . 2 . . . . . 2 . 12 . . 29 5 . . . 20 3 . . . 1 6 2 1 23 . 13 1 . . Largest Group 22 | . . 2 1 . . . . 2 . 12 . . 21 21 18 . . 20 22 . . . 1 2 1 1 13 1 2 1 . . Highest-Rated Group 980 | . . 44 31 . . . . 70 . 235 . . 719 980 948 . . 750 770 . . . 49 66 9 49 617 56 116 82 . . Highest-Rated Ally 159 | . . 31 31 . . . . 39 . 31 . . 159 159 153 . . 50 50 . . . 49 58 9 49 89 56 116 82 . . Initial Warlord ECA Mod 9 | . . . . . . . . . 9 9 9 7 7 7 7 7 6 6 6 6 6 6 5 5 4 4 4 3 3 2 1 1 Warlord Squad Rendezvous 1 | . . . . . . . . . . . . . . . . . . . . . . . . 1 . . . . . . . . Ranger 1 | . . . . . . . . . . . . . . . . . . . . . . . . 1 . . . . . . . . Total Orders 5 | . . . . . . . . . . . . . . . . . . . 2 . . . . . . . 2 . . . . 1 STAY 1 | . . . . . . . . . . . . . . . . . . . . . . . . . . . 1 . . . . . FOLLOW 1 | . . . . . . . . . . . . . . . . . . . . . . . . . . . 1 . . . . . AID 1 | . . . . . . . . . . . . . . . . . . . 1 . . . . . . . . . . . . . TUNNEL 1 | . . . . . . . . . . . . . . . . . . . 1 . . . . . . . . . . . . . EXPLORE 1 | . . . . . . . . . . . . . . . . . . . . . . . . . . . . . . . . 1 Ally Attacks 619 | . . 3 13 . . . . 34 . 80 . . 119 52 47 . . . 137 . . . . 21 2 4 53 3 47 4 . . Total Damage 15173 | . . 22 191 . . . . 394 . 1067 . . 2447 1544 2043 . . . 3594 . . . . 317 46 135 1756 103 1484 30 . . Kills 102 | . . . 5 . . . . 4 . 13 . . 18 12 13 . . . 20 . . . . 2 1 1 7 . 6 . . . Allies Corrupted 7 | . . . . . . . . . . 1 . . . . . . . . 4 . . . . . . . . 1 1 . . . Allies Melted 2 | . . . . . . . . . . . . . . . . . . . . . . . . . . . . . . 2 . . Intel | -11 -10 -10 -9 -9 -9 -8 -8 -8 -8 -8 -8 -6 -6 -6 -6 -6 -5 -5 -5 -5 -5 -5 -4 -4 -4 -4 -4 -3 -3 -2 -1 -1 ------- Run | Yrd Mat Min Mat Min Exi Min Mat Gar Mat Sto Rec Fac Ext Cet Arc Hub Fac Was Fac Upp Upp Zhi Pro Fac Upp Upp War Pro Res Res Acc Com Active Infowar (turns) 14023 | . 770 207 819 . . . 310 . . . . 2764 1529 552 84 2041 1509 165 103 . . . . 312 . . . . 144 786 1924 4 Optics 2725 | . . . 83 . . . . . . . . . . . . . . . . . . . . . . . . . . 786 1856 . Terrain 456 | . . . . . . . . . . . . . . . . . . . . . . . . 312 . . . . 144 . . . Structural 2174 | . 770 207 819 . . . 310 . . . . . . . . . . . . . . . . . . . . . . . 68 . Traps 1556 | . . . . . . . . . . . . 1556 . . . . . . . . . . . . . . . . . . . . T.N.C. 8746 | . . . . . . . . . . . . 2763 1529 552 84 2041 1509 165 103 . . . . . . . . . . . . . Cloaking 4 | . . . . . . . . . . . . . . . . . . . . . . . . . . . . . . . . 4 Robot Analysis Total 9 | . 3 . 2 . . . . . . . . . . . . . . . . . . 4 . . . . . . . . . . Derelict Logs Recovered 7 | . . 1 . 1 . . . . . . . . . . . . . . . . 1 . 1 . 2 1 . . . . . . Drone Launches 2 | . . . . . . . . . . . . . . . . . . . . . . . . . . . . . . . . 2 Drone Recoveries . | . . . . . . . . . . . . . . . . . . . . . . . . . . . . . . . . . Exploration | -11 -10 -10 -9 -9 -9 -8 -8 -8 -8 -8 -8 -6 -6 -6 -6 -6 -5 -5 -5 -5 -5 -5 -4 -4 -4 -4 -4 -3 -3 -2 -1 -1 ------------- Run | Yrd Mat Min Mat Min Exi Min Mat Gar Mat Sto Rec Fac Ext Cet Arc Hub Fac Was Fac Upp Upp Zhi Pro Fac Upp Upp War Pro Res Res Acc Com Turns Passed 30197 | 40 811 207 1668 336 319 418 762 1709 1259 698 936 2810 1529 552 84 2174 1509 165 1690 342 241 139 110 933 345 200 610 273 1136 1279 3168 1745 Spaces Moved 23150 | 35 470 147 908 248 236 295 338 1051 817 452 739 1746 767 259 69 1034 1248 216 1920 538 424 212 201 1207 512 399 938 447 1528 1137 1892 720 Core 17 | 1 . . . . . . . . . . . . . . . . . . . . . . . . . . . . . . . 16 Treads 443 | . . . . . . . . . . . . . . . . . . . . . . . . . . . . . . . . 443 Legs 2611 | . . . . . . . . . . . . . . . . 148 196 . . . . . . . . . . . . 114 1892 261 Wheels 10952 | 34 470 147 908 248 236 295 338 1051 817 452 739 1746 767 259 69 882 . . . . . . . . . . . . 471 1023 . . Hover 9127 | . . . . . . . . . . . . . . . . 4 1052 216 1920 538 424 212 201 1207 512 399 938 447 1057 . . . Flight . | . . . . . . . . . . . . . . . . . . . . . . . . . . . . . . . . . Fastest Speed 34 | 50 90 135 125 135 135 135 116 116 115 120 120 115 115 113 113 107 46 52 53 53 53 42 42 42 42 47 47 47 34 97 98 50 Average Speed 92 | 89 122 135 135 135 135 135 124 120 118 120 120 128 129 122 113 122 69 55 55 53 53 46 42 42 44 47 47 47 54 99 105 133 Slowest Speed 330 | 100 135 135 200 135 135 135 135 130 235 120 120 130 130 130 113 330 246 126 118 53 53 53 42 105 105 47 47 47 130 170 192 330 Overloaded Moves . | . . . . . . . . . . . . . . . . . . . . . . . . . . . . . . . . . Propulsion Burnouts . | . . . . . . . . . . . . . . . . . . . . . . . . . . . . . . . . . Robots Hopped . | . . . . . . . . . . . . . . . . . . . . . . . . . . . . . . . . . Potential Cave-ins 2 | . . . . . . . . . . . . . . . . . . . . . . . . . . . . . . 2 . . Cave-ins Triggered 1 | . . . . . . . . . . . . . . . . 1 . . . . . . . . . . . . . . . . Teleports 1 | . . . . . . . . . . . . . . . . . . . . . . . . . . . . . . . . 1 Exploration Rate (%) 57 | 3 69 33 82 47 62 60 33 85 76 80 96 44 86 78 73 63 31 90 42 67 55 60 40 36 58 59 92 61 38 29 43 36 Regions Visited 32 Branch Regions 19 Pre-discovered Areas 11 | . . . . . . . . . . . 6 . . . . . . . . 1 1 3 . . . . . . . . . . Known Exits Taken 13 | . . . 1 . . . 1 . 1 1 . 1 . . . . . . 1 . . . 1 1 1 1 1 1 1 . . . Unknown Exits Taken 16 | 1 1 1 . 1 1 1 . . . . 1 . 1 1 1 1 . . . 1 1 1 . . . . . . . 1 1 . Scrap Searched 15 | . . 1 . 1 . 1 . . . . . . . . . . . . . 3 2 . 1 . 1 4 . 1 . . . . Spaces Dug 163 | . . . . . . . 21 . 15 4 . 18 . . . 26 16 . 14 . . . . 21 1 . . . 8 1 15 3 Terrain Destroyed 973 | . 14 . 112 . . 9 67 145 82 7 5 52 34 . . 43 55 . 22 2 . . . 28 32 . 1 40 9 1 74 139 Melee 106 | . . . . . . . . . 3 4 . 15 . . . 16 16 . 14 . . . . 19 1 . . . 8 1 8 1 Projectile 150 | . . . . . . . 3 2 12 3 5 24 13 . . 22 4 . 4 2 . . . 9 . . 1 4 1 . 20 21 AOE 697 | . 14 . 112 . . 9 64 143 67 . . 13 21 . . 5 35 . 3 . . . . . 31 . . 35 . . 28 117 Terrain Rammed . | . . . . . . . . . . . . . . . . . . . . . . . . . . . . . . . . . Walls Destroyed . | . . . . . . . . . . . . . . . . . . . . . . . . . . . . . . . . . Machines Disabled . | . . . . . . . . . . . . . . . . . . . . . . . . . . . . . . . . . Actions | -11 -10 -10 -9 -9 -9 -8 -8 -8 -8 -8 -8 -6 -6 -6 -6 -6 -5 -5 -5 -5 -5 -5 -4 -4 -4 -4 -4 -3 -3 -2 -1 -1 --------- Run | Yrd Mat Min Mat Min Exi Min Mat Gar Mat Sto Rec Fac Ext Cet Arc Hub Fac Was Fac Upp Upp Zhi Pro Fac Upp Upp War Pro Res Res Acc Com Total 29111 | 40 600 154 1149 249 237 313 565 1333 991 565 770 2116 1213 465 74 1640 1726 261 2430 578 438 250 217 1496 588 408 1093 478 1757 1260 2544 1113 Wait 2717 | . 40 5 55 . . 16 122 61 56 55 21 178 258 182 . 352 260 25 353 7 8 . 4 127 41 . 99 4 100 36 190 62 Move 23117 | 34 469 146 907 247 235 294 338 1048 816 451 738 1745 766 258 68 1033 1248 215 1919 537 423 211 200 1206 511 398 937 446 1527 1136 1891 719 Hop . | . . . . . . . . . . . . . . . . . . . . . . . . . . . . . . . . . Pick Up 236 | . 10 2 24 2 1 . 9 18 11 3 . 12 14 4 2 17 9 1 15 5 1 6 1 10 1 . 3 1 9 10 26 9 Fast Attach 352 | 6 4 . 12 . . . 3 7 8 10 . 15 6 1 1 24 13 9 14 2 . 13 . 12 2 4 3 1 21 24 98 39 Attach 148 | . 1 . 7 . . . 7 13 4 1 . 8 6 2 . 20 10 . 3 3 1 . 1 7 2 . . 1 3 1 26 21 Detach 43 | . . . . . . . . . 2 2 . 1 2 . . 8 5 1 . . . 1 . 3 . . . . . 1 10 7 Swap 227 | . 2 . 20 . . 2 12 2 11 6 . 8 3 1 . 11 29 1 16 7 1 2 4 17 6 1 1 6 8 10 30 10 Drop 411 | . 3 . 23 . 1 . 9 15 13 13 . 22 4 5 2 18 32 9 25 7 2 16 2 18 3 4 7 4 31 29 52 42 Fire 1202 | . 71 1 101 . . 1 58 45 54 15 7 106 48 12 . 126 48 . 20 10 2 . . 47 12 1 7 14 30 6 210 150 Melee 400 | . . . . . . . 7 91 16 9 4 21 4 . 1 17 72 . 52 . . 1 5 35 10 . 1 1 15 7 9 22 Ram . | . . . . . . . . . . . . . . . . . . . . . . . . . . . . . . . . . Kick 2 | . . . . . . . . . . . . . . . . . . . . . . . . . . . . . . . 2 . Crush . | . . . . . . . . . . . . . . . . . . . . . . . . . . . . . . . . . Escape Stasis 95 | . . . . . . . . 32 . . . . 16 . . 8 . . 13 . . . . 13 . . . . 13 . . . Rewire 123 | . . . . . . . . 1 . . . . 86 . . . . . . . . . . 1 . . 35 . . . . . Trap . | . . . . . . . . . . . . . . . . . . . . . . . . . . . . . . . . . Miscellaneous 38 | . . . . . . . . . . . . . . . . 6 . . . . . . . . . . . . . . . 32 Route ------- -11/Scrapyard -10/Materials (discovered 3 exits: *Mat x2 / [*Min]) -10/Mines (discovered 3 exits: *Mat x2 / Sub) -9/Materials (discovered 4 exits: *Mat x2 / *Min x2) -9/Mines (discovered 2 exits: *Mat / *Exi) -9/Exiles -8/Mines -8/Materials (discovered 3 exits: *Fac / Sto / Gar) -8/Garrison (discovered 4 exits: *Mat x4) -8/Materials (discovered 5 exits: *Fac x3 / *Sto x2) -8/Storage (discovered 2 exits: *Fac / *Rec) -8/Recycling -6/Factory (discovered 6 exits: *Fac x2 / *Low x2 / *Ext x2) -6/Extension (discovered 2 exits: *Fac / *Cet) -6/Cetus (discovered 2 exits: *Fac / *Arc) -6/Archives -6/Hub_04(d) (discovered 2 exits: *Fac x2) -5/Factory -5/Waste -5/Factory (discovered 4 exits: *Fac x2 / *Upp x2) -5/Upper Caves -5/Upper Caves (discovered 2 exits: *Fac / *Zhi) -5/Zhirov -4/Proximity Caves -4/Factory (discovered 5 exits: *Res x2 / *Upp x2 / Arm) -4/Upper Caves -4/Upper Caves (discovered 2 exits: *Res / *War) -4/Warlord -3/Proximity Caves -3/Research (discovered 5 exits: *Res x3 / *Qua x2) -2/Research (discovered 2 exits: *Acc / *Tes) -1/Access (discovered 2 exits: *Sur / *Com) -1/Command (discovered 2 exits: *Sur x2) To Epsilon Eridani History --------- Turn | Location | Event 24 | -11/Scrapyard | Discovered new exit (range 15) 41 | -11/Scrapyard | Entered Materials 199 | -10/Materials | Discovered new exit (range 15) 316 | -10/Materials | Build established: Mutant 338 | -10/Materials | Discovered new exit (range 6) 621 | -10/Materials | Discovered new exit (range 16) 852 | -10/Materials | Entered Mines 890 | -10/Mines | Met a Derelict bent on vengeance 970 | -10/Mines | Discovered new exit (range 13) 1013 | -10/Mines | Discovered new exit (range 4) 1027 | -10/Mines | Assembled infested the area 1032 | -10/Mines | Assisted by a Guerilla fighting off Assembled 1054 | -10/Mines | Identified exit to Subcaves 1059 | -10/Mines | Entered Materials 1059 | -9/Materials | Accompanied by 1 ally 1059 | -9/Materials | Evolved 2 slots: Utility x1, Weapon x1 1064 | -9/Materials | Led the pair of lost Derelicts to an unsafe place 1254 | -9/Materials | Identified exit to Mines 1355 | -9/Materials | Repaired Wheel 1465 | -9/Materials | Discovered new exit (range 3) 1610 | -9/Materials | Build established: Scavenger-Tank 1683 | -9/Materials | Discovered new exit (range 15) 1859 | -9/Materials | First assault squad dispatched 2727 | -9/Materials | Entered Mines 2814 | -9/Mines | Deemed a non-threat by the Exiles lab entrance 2814 | -9/Mines | Discovered new exit (range 5) 2899 | -9/Mines | A weapon hastily lodged in a ceiling crevice suddenly fell to the ground 2909 | -9/Mines | Discovered new exit (range 7) 2911 | -9/Mines | Build established: Tank 3063 | -9/Mines | Entered Exiles 3099 | -9/Exiles | Met 8R-AWN 3123 | -9/Exiles | Met EX-HEX 3165 | -9/Exiles | Met EX-BIN 3181 | -9/Exiles | Aligned with FarCom system 3182 | -9/Exiles | Given EX-Vault access code 3213 | -9/Exiles | Opened EX-Vault 3225 | -9/Exiles | Found Modified TNC 3250 | -9/Exiles | Warned to stay clear of 0b10 Research branches 3289 | -9/Exiles | Met EX-DEC 3366 | -9/Exiles | Discovered new exit (range 14) 3382 | -9/Exiles | Left Exiles lab with Modified TNC 3382 | -9/Exiles | Entered Mines 3567 | -8/Mines | Discovered new exit (range 12) 3685 | -8/Mines | Build established: Skirmisher 3800 | -8/Mines | Entered Materials 3800 | -8/Materials | Evolved 2 slots: Propulsion x1, Utility x1 3801 | -8/Materials | Identified exit to Storage 4227 | -8/Materials | Discovered new exit (range 16) 4449 | -8/Materials | Garrison activated, responded to threat 4562 | -8/Materials | Identified exit to Garrison 4562 | -8/Materials | Entered Garrison 4573 | -8/Garrison | Lost 3 parts (1p2w) 4663 | -8/Garrison | Rescued a captive Derelict 4664 | -8/Garrison | Rescued a captive Derelict 4742 | -8/Garrison | Spotted B-75 Beast 4757 | -8/Garrison | Destroyed B-75 Beast 4836 | -8/Garrison | Build established: Scavenger-Mutant 4866 | -8/Garrison | Triggered checkpoint 5113 | -8/Garrison | Discovered new exit (range 14) 5163 | -8/Garrison | Identified exit to Materials 5182 | -8/Garrison | Triggered checkpoint 5208 | -8/Garrison | Core integrity fell below 50% 5232 | -8/Garrison | Build established: Mutant 5246 | -8/Garrison | Garrison Relay disabled 5254 | -8/Garrison | Lost 3 parts (1p2w) 5350 | -8/Garrison | Discovered exit to Materials (range 8) 5394 | -8/Garrison | Triggered checkpoint 5420 | -8/Garrison | Garrison Relay disabled 5504 | -8/Garrison | Triggered checkpoint 5508 | -8/Garrison | Discovered exit to Materials (range 46) 5508 | -8/Garrison | Discovered exit to Materials (range 23) 5508 | -8/Garrison | Discovered exit to Materials (range 28) 5508 | -8/Garrison | Discovered exit to Materials (range 35) 5600 | -8/Garrison | Destroyed 9 combat bots 5701 | -8/Garrison | Learned Materials security intel 5711 | -8/Garrison | Phase Generator disabled 6004 | -8/Garrison | Garrison Relay disabled 6047 | -8/Garrison | Build established: Scavenger-Mutant 6102 | -8/Garrison | Attempted to access garrison exit controls, blocked by remote lockdown 6188 | -8/Garrison | Attempted to access garrison exit controls, blocked by remote lockdown 6271 | -8/Garrison | Entered Materials 6333 | -8/Materials | Central database locked down 6464 | -8/Materials | Repaired Gatling Laser 6726 | -8/Materials | Discovered new exit (range 15) 7129 | -8/Materials | Core integrity fell below 20% 7186 | -8/Materials | Identified exit to Factory 7530 | -8/Materials | Entered Storage 7601 | -8/Storage | Found Prototype Protection 7601 | -8/Storage | Identified Lgt. Regenerative Plating 7664 | -8/Storage | Identified exit to Recycling 7785 | -8/Storage | Build established: Hacker-Mutant 7941 | -8/Storage | Assisted by bots powering up and referring to "LRC-V3" 7964 | -8/Storage | Discovered exit to Factory (range 15) 8111 | -8/Storage | Met a pair of Derelict thieves 8207 | -8/Storage | Lost 4 allies 8223 | -8/Storage | Used back door to open Recycling access 8228 | -8/Storage | Entered Recycling 8254 | -8/Recycling | Lost 6 allies 8628 | -8/Recycling | Scanned before Scraplab entrance 8755 | -8/Recycling | Discovered new exit (range 10) 9164 | -8/Recycling | Entered Factory 9164 | -6/Factory | Evolved 4 slots: Propulsion x1, Utility x3 9351 | -6/Factory | Spotted B-75 Beast 9514 | -6/Factory | Search patrols dispatched 9557 | -6/Factory | Build established: Hacker-Assassin 10039 | -6/Factory | Repaired Arm. Huge Wheel 10078 | -6/Factory | Repaired Hvy. Assault Cannon 10952 | -6/Factory | Discovered new exit (range 14) 11399 | -6/Factory | Build established: Hacker-Mutant 11496 | -6/Factory | Identified exit to Lower Caves 11496 | -6/Factory | Identified exit to Extension 11614 | -6/Factory | First assault squad dispatched 11920 | -6/Factory | Discovered new exit (range 7) 11926 | -6/Factory | Lost 3 parts (2n1w) 11974 | -6/Factory | Entered Extension 12083 | -6/Extension | Rescued a captive Derelict 12401 | -6/Extension | Rescued a captive Derelict 12401 | -6/Extension | Rescued a captive Derelict 12443 | -6/Extension | Rescued A7 12450 | -6/Extension | Rescued a captive Derelict 12451 | -6/Extension | Rescued a captive Derelict 12499 | -6/Extension | Rescued a captive Derelict 12646 | -6/Extension | Build established: Commander-Mutant 12941 | -6/Extension | Spotted B-75 Beast 12949 | -6/Extension | Destroyed B-75 Beast 12973 | -6/Extension | Spotted B-75 Beast 12988 | -6/Extension | Allies destroyed B-75 Beast 13018 | -6/Extension | Lost 4 allies 13296 | -6/Extension | Rescued a captive Derelict 13297 | -6/Extension | Rescued a captive Derelict 13312 | -6/Extension | Rescued a captive Derelict 13352 | -6/Extension | Discovered new exit (range 10) 13354 | -6/Extension | Discovered new exit (range 6) 13503 | -6/Extension | Entered Cetus 13503 | -6/Cetus | Accompanied by 21 allies (A7) 13508 | -6/Cetus | Acquired a Cetus Manufacturing Module code from A7 13524 | -6/Cetus | Spotted Cetus Guard 13524 | -6/Cetus | Spotted Cetus Guard 13525 | -6/Cetus | Spotted Cetus Guard 13525 | -6/Cetus | Spotted Cetus Guard 13537 | -6/Cetus | Allies destroyed Cetus Guard 13542 | -6/Cetus | Allies destroyed Cetus Guard 13548 | -6/Cetus | Allies destroyed Cetus Guard 13559 | -6/Cetus | Allies destroyed Cetus Guard 13579 | -6/Cetus | Lost 7 allies 13631 | -6/Cetus | Started Cetus Manufacturing Module 13641 | -6/Cetus | Escorted A7 to Cetus Mainframe 13656 | -6/Cetus | Manufactured an Enhanced Grunt 13681 | -6/Cetus | Manufactured an Enhanced Grunt 13706 | -6/Cetus | Manufactured an Enhanced Grunt 13731 | -6/Cetus | Manufactured an Enhanced Grunt 13756 | -6/Cetus | Manufactured an Enhanced Grunt 13787 | -6/Cetus | Discovered new exit (range 15) 13822 | -6/Cetus | Spotted Cetus Guard 13822 | -6/Cetus | Spotted Cetus Guard 13829 | -6/Cetus | Allies destroyed Cetus Guard 13830 | -6/Cetus | Allies destroyed Cetus Guard 13833 | -6/Cetus | Spotted Cetus Guard 13837 | -6/Cetus | Spotted Cetus Guard 13838 | -6/Cetus | Allies destroyed Cetus Guard 13842 | -6/Cetus | Allies destroyed Cetus Guard 13845 | -6/Cetus | Discovered new exit (range 15) 13852 | -6/Cetus | Met Revision 17 14055 | -6/Cetus | Entered Archives 14055 | -6/Archives | Accompanied by 18 allies (A7) 14060 | -6/Archives | Received a hacking code to weaken MAIN.C 14069 | -6/Archives | Met Zhirov 14075 | -6/Archives | Reinforcements dispatched to Archives 14081 | -6/Archives | Read partially decrypted archive contents 14085 | -6/Archives | Discovered new exit (range 14) 14120 | -6/Archives | Reinforcements dispatched to Archives 14139 | -6/Archives | Entered Hub_04(d) 14139 | -6/Hub_04(d) | Discovered new exit (range 10) 14164 | -6/Hub_04(d) | Lost 5 allies 14269 | -6/Hub_04(d) | Crushed by falling debris 14375 | -6/Hub_04(d) | Garrison activated, responded to threat 14430 | -6/Hub_04(d) | Build established: Scavenger-Mutant 14443 | -6/Hub_04(d) | Lost 4 parts (1n1u2w) 14632 | -6/Hub_04(d) | Core integrity fell below 50% 14902 | -6/Hub_04(d) | Build established: Scavenger-Skirmisher 15241 | -6/Hub_04(d) | Build established: Scavenger-Mutant 15293 | -6/Hub_04(d) | Discovered new exit (range 8) 15474 | -6/Hub_04(d) | Spotted B-75 Beast 15519 | -6/Hub_04(d) | Destroyed B-75 Beast 15755 | -6/Hub_04(d) | Lost 5 parts (2n1u2w) 15803 | -6/Hub_04(d) | Network Hub disabled 15878 | -6/Hub_04(d) | Spotted Lightning 15882 | -6/Hub_04(d) | Spotted Lightning 15884 | -6/Hub_04(d) | Spotted Lightning 15903 | -6/Hub_04(d) | Destroyed Lightning 15922 | -6/Hub_04(d) | Destroyed Lightning 15939 | -6/Hub_04(d) | Lost 4 parts (1p1n2w) 15965 | -6/Hub_04(d) | Destroyed Lightning 16006 | -6/Hub_04(d) | Found Prototype Energy Cannon 16006 | -6/Hub_04(d) | Identified EMDS 16009 | -6/Hub_04(d) | Found Prototype Processor 16009 | -6/Hub_04(d) | Identified Exp. Targeting Computer 16033 | -6/Hub_04(d) | Found EMDS 16048 | -6/Hub_04(d) | Found Prototype Device 16048 | -6/Hub_04(d) | Identified Exp. EM Shield 16313 | -6/Hub_04(d) | Entered Factory 16313 | -5/Factory | Evolved 2 slots: Power x1, Propulsion x1 16838 | -5/Factory | Lost 3 parts (1n1u1w) 16970 | -5/Factory | Cargo convoy interrupted 17039 | -5/Factory | Fabricated Neutrino Core? 17822 | -5/Factory | Sucked down chute 17822 | -5/Factory | Entered Waste 17823 | -5/Waste | Joined by Warlord forces that had cleared the area 17866 | -5/Waste | Found Prototype Launcher 17866 | -5/Waste | Identified Ragnarok Missile Launcher 17948 | -5/Waste | Discovered new exit (range 13) 17987 | -5/Waste | Entered Factory 17987 | -5/Factory | Accompanied by 20 allies 18109 | -5/Factory | Fabricated T-07 Excavator? 18119 | -5/Factory | Discovered new exit (range 14) 18213 | -5/Factory | Lost 5 allies 18291 | -5/Factory | Identified exit to Factory 18437 | -5/Factory | Lost 4 allies 18651 | -5/Factory | Garrison activated, responded to threat 18763 | -5/Factory | Central database locked down 18885 | -5/Factory | Discovered exit to Factory (range 9) 18901 | -5/Factory | Repaired Cmb. Airjet+ 19010 | -5/Factory | Repaired Hvy. Mass Driver+ 19196 | -5/Factory | Fabricated M-13 Machinist (x1) 19314 | -5/Factory | Identified exit to Upper Caves 19402 | -5/Factory | Allied Derelicts emerged from ambush trap array 19677 | -5/Factory | Entered Upper Caves 19683 | -5/Upper Caves | Met a Warlord Commander 19684 | -5/Upper Caves | Learned location of Warlord (-4) 19685 | -5/Upper Caves | Warlord Commander delivered Encrypted Comm Array 19688 | -5/Upper Caves | Found Encrypted Comm Array 19909 | -5/Upper Caves | Discovered new exit (range 12) 20019 | -5/Upper Caves | Entered another Upper Caves area 20031 | -5/Upper Caves | Learned location of Armory (-4) 20034 | -5/Upper Caves | Discovered exit to Factory (range 14) 20231 | -5/Upper Caves | Discovered new exit (range 12) 20260 | -5/Upper Caves | Entered Zhirov 20261 | -5/Zhirov | Discovered new exit (range 3) 20283 | -5/Zhirov | Learned location of Testing (-2) 20283 | -5/Zhirov | Learned location of Command (-1) 20295 | -5/Zhirov | Found Alien Artifact 20295 | -5/Zhirov | Identified Integrated Dissipator 20295 | -5/Zhirov | Installed Integrated Dissipator, increased core heat dissipation (+20) 20371 | -5/Zhirov | Found Alien Artifact 20399 | -5/Zhirov | Entered Proximity Caves 20415 | -4/Proximity Caves | Learned Research machine intel 20502 | -4/Proximity Caves | Discovered exit to Factory (range 16) 20509 | -4/Proximity Caves | Entered Factory 20509 | -4/Factory | Evolved 2 slots: Utility x2 20556 | -4/Factory | Discovered new exit (range 3) 20634 | -4/Factory | Garrison activated, responded to threat 20760 | -4/Factory | Build established: Hacker-Mutant 20813 | -4/Factory | Discovered new exit (range 5) 20980 | -4/Factory | Identified exit to Upper Caves 20980 | -4/Factory | Identified exit to Armory 21007 | -4/Factory | Fabricated Enh. Hardcell Cannon (x2) 21182 | -4/Factory | Unchained authorized (6S-H0T) 21197 | -4/Factory | Allied Derelicts emerged from ambush trap array 21206 | -4/Factory | Joined by Warlord Ranger squad 21237 | -4/Factory | Local machine network offline 21309 | -4/Factory | Lost 3 allies 21442 | -4/Factory | Entered Upper Caves 21448 | -4/Upper Caves | Learned Research security intel 21458 | -4/Upper Caves | Identified exit to Upper Caves 21519 | -4/Upper Caves | Encountered a Warlord checkpoint 21557 | -4/Upper Caves | Spotted B-86 Titan 21642 | -4/Upper Caves | Destroyed B-86 Titan 21714 | -4/Upper Caves | Destroyed 7 combat bots 21787 | -4/Upper Caves | Entered another Upper Caves area 21787 | -4/Upper Caves | Discovered new exit (range 8) 21792 | -4/Upper Caves | Identified exit to Research 21809 | -4/Upper Caves | Identified exit to Warlord 21846 | -4/Upper Caves | Spotted B-86 Titan 21902 | -4/Upper Caves | Encountered a Warlord checkpoint 21987 | -4/Upper Caves | Entered Warlord 22070 | -4/Warlord | Met Warlord 22095 | -4/Warlord | Warlord's base attacked by MAIN.C 22287 | -4/Warlord | Found Prototype Device 22287 | -4/Warlord | Identified Minesniffer Drone Bay 22374 | -4/Warlord | Found Prototype Energy Cannon 22375 | -4/Warlord | Found Prototype Energy Cannon 22378 | -4/Warlord | Found Prototype Launcher 22445 | -4/Warlord | Warlord forces counterattacked 22464 | -4/Warlord | Spotted Striker 22478 | -4/Warlord | Destroyed Striker 22485 | -4/Warlord | Spotted Striker 22490 | -4/Warlord | Destroyed Striker 22502 | -4/Warlord | Spotted Striker 22530 | -4/Warlord | Lost 9 allies 22559 | -4/Warlord | Opened side exit 22566 | -4/Warlord | Spotted Striker 22578 | -4/Warlord | Allies destroyed Striker 22582 | -4/Warlord | Discovered new exit (range 14) 22587 | -4/Warlord | Identified exit to Proximity Caves 22597 | -4/Warlord | Spotted Striker 22597 | -4/Warlord | Entered Proximity Caves 22597 | -3/Proximity Caves | Accompanied by 1 ally 22638 | -3/Proximity Caves | Lost 5 allies 22835 | -3/Proximity Caves | Spotted B-86 Titan 22868 | -3/Proximity Caves | Discovered exit to Research (range 4) 22870 | -3/Proximity Caves | Entered Research 22870 | -3/Research | Evolved 2 slots: Propulsion x1, Utility x1 22872 | -3/Research | Loaded intel: 103 machine locations 22883 | -3/Research | Central database locked down 23070 | -3/Research | Revision forces began assault on 0b10 23137 | -3/Research | Met up with Revision 17++ 23285 | -3/Research | Discovered new exit (range 11) 23289 | -3/Research | Identified exit to Quarantine 23319 | -3/Research | Identified exit to Research 23481 | -3/Research | Local machine network offline 23570 | -3/Research | Research terminal network offline 23630 | -3/Research | Spotted Striker 23634 | -3/Research | Spotted Striker 23809 | -3/Research | Lost 5 allies 23869 | -3/Research | Spotted B-90 Cyclops 23873 | -3/Research | Discovered exit to Quarantine (range 13) 23933 | -3/Research | Lost 3 allies 24006 | -3/Research | Entered another Research area 24006 | -2/Research | Warlord forces began assault on 0b10 24006 | -2/Research | Evolved 2 slots: Utility x1, Weapon x1 24031 | -2/Research | Distinguished unit "Vikings" dispatched to help 24082 | -2/Research | Discovered new exit (range 10) 24107 | -2/Research | Identified exit to Testing 24116 | -2/Research | Research machine network offline 24272 | -2/Research | Spotted Executioner 24273 | -2/Research | Met up with Warlord 24281 | -2/Research | Discovered new exit (range 5) 24310 | -2/Research | Lost 5 allies 24377 | -2/Research | Borebot progress halted 24493 | -2/Research | Found Prototype Processor 24493 | -2/Research | Identified Exp. Core Analyzer 24496 | -2/Research | Found Prototype Device 24496 | -2/Research | Identified Adv. Kinecellerator 24529 | -2/Research | Borebot progress halted 24592 | -2/Research | Spotted Executioner 24775 | -2/Research | Build established: Scavenger-Gunner 24790 | -2/Research | Spotted Executioner 24852 | -2/Research | Lost 4 allies 24981 | -2/Research | Spotted Executioner 25003 | -2/Research | Found Prototype Processor 25003 | -2/Research | Identified Exp. Melee Analysis Suite 25014 | -2/Research | Spotted Striker 25017 | -2/Research | Spotted Striker 25066 | -2/Research | Lost 3 allies 25249 | -2/Research | Warlord invited to help at Command 25249 | -2/Research | Given Cave Seal Controls access code 25285 | -2/Research | Entered Access 25285 | -1/Access | Evolved 2 slots: Utility x2 25490 | -1/Access | Unchained authorized (6S-H0T) 25697 | -1/Access | Central database locked down 25799 | -1/Access | Build established: Scavenger-Tank 26174 | -1/Access | Identified Vortex Catalyst Activator 26214 | -1/Access | Destroyed 7 combat bots 26269 | -1/Access | Discovered new exit (range 6) 26285 | -1/Access | First assault squad dispatched 26514 | -1/Access | Lost 5 parts (4u1w) 26847 | -1/Access | Spotted B-99 Colossus 26983 | -1/Access | Lost 3 parts (2u1w) 27109 | -1/Access | Lost 9 parts (1p2n5u1w) 27251 | -1/Access | Build established: Scavenger-Gunner 27305 | -1/Access | Destroyed 7 combat bots 27395 | -1/Access | Lost 3 parts (3u) 27696 | -1/Access | Identified Vortex Driver (x2) 27703 | -1/Access | Lost 3 parts (1n2u) 28059 | -1/Access | Destroyed 7 combat bots 28405 | -1/Access | High security lockdown imminent 28447 | -1/Access | Discovered new exit (range 7) 28453 | -1/Access | Entered Command 28873 | -1/Command | Build established: Scavenger-Tank 28953 | -1/Command | First assault squad dispatched 29105 | -1/Command | Destroyed 14 combat bots 29187 | -1/Command | Spotted Combat Programmer 29188 | -1/Command | Spotted M Guard 29189 | -1/Command | Spotted Combat Programmer 29208 | -1/Command | Destroyed Combat Programmer 29225 | -1/Command | Destroyed Combat Programmer 29242 | -1/Command | Lost 3 parts (2u1w) 29270 | -1/Command | Spotted M Guard 29396 | -1/Command | Destroyed 8 combat bots 29431 | -1/Command | Destroyed M Guard 29542 | -1/Command | Met MAIN.C 29543 | -1/Command | Hacked MAIN.C using A7's code 29557 | -1/Command | 0b10 Conduit disabled 29629 | -1/Command | System corruption reached 10% 29739 | -1/Command | Lost 11 parts (1p3n5u2w) 29784 | -1/Command | Destroyed MAIN.C Shell 29787 | -1/Command | MAIN.C activated Command garrisons 29787 | -1/Command | Surrendered to MAIN.C 29787 | -1/Command | Loaded intel: 59 machine locations 29787 | -1/Command | Loaded intel: 107 trap records 29787 | -1/Command | Identified exit to Surface 29787 | -1/Command | Discovered exit to Surface (range 43) 29787 | -1/Command | Discovered exit to Surface (range 107) 29871 | -1/Command | Found Prototype Reactor 29871 | -1/Command | Identified Zero-point Reactor 29875 | -1/Command | Found Prototype Reactor 29875 | -1/Command | Identified Vortex Chain Reactor 29877 | -1/Command | Found Prototype Processor 29877 | -1/Command | Identified Exp. Target Analyzer 29880 | -1/Command | Found Prototype Device 29880 | -1/Command | Identified Exp. Cloaking Device 29883 | -1/Command | Found Prototype Device 29883 | -1/Command | Identified Exp. System Purifier 29885 | -1/Command | Found Prototype Processor 29885 | -1/Command | Identified Exp. Armor Integrity Analyzer 29888 | -1/Command | Found Adv. Kinecellerator 29890 | -1/Command | Found Prototype Device 29890 | -1/Command | Identified Thermal Barrier 29910 | -1/Command | Found Prototype Device 29910 | -1/Command | Identified AEGIS Remote Shield 30000 | -1/Command | MAIN.C activated Command garrisons 30039 | -1/Command | Unknown forces attacked Command 30039 | -1/Command | Spotted EQ-002 30039 | -1/Command | Spotted EQ-005 30041 | -1/Command | Spotted EQ-000 30041 | -1/Command | Spotted EQ-006 30042 | -1/Command | Spotted EQ-003 30045 | -1/Command | Spotted EQ-004 30059 | -1/Command | Destroyed EQ-005 30062 | -1/Command | All MAIN.C guards destroyed 30064 | -1/Command | Spotted EQ-001 30087 | -1/Command | Destroyed EQ-001 30093 | -1/Command | Lost 4 allies 30098 | -1/Command | Destroyed EQ-004 30102 | -1/Command | Core integrity fell below 50% 30104 | -1/Command | Destroyed EQ-006 30106 | -1/Command | Spotted EQ-012 30135 | -1/Command | Spotted EQ-022 30135 | -1/Command | Spotted EQ-019 30135 | -1/Command | Spotted EQ-020 30135 | -1/Command | Spotted EQ-021 30135 | -1/Command | Spotted EQ-018 30150 | -1/Command | Identified Transdimensional Reconstructor 30150 | -1/Command | Warped through subspace 30155 | -1/Command | Spotted Striker 30174 | -1/Command | Spotted EQ-030 30175 | -1/Command | Lost 3 parts (3u) 30181 | -1/Command | Spotted EQ-029 30189 | -1/Command | Released all parts (13) 30193 | -1/Command | Core integrity fell below 20% 30198 | *** | Escaped! Last Messages --------------- 30189_ Released Rnf. Quantum Reactor. 30189_ Released Adv. Heat Sink. 30189_ Released Adv. Coolant Injector. 30189_ Released Graviton Cannon. 30189_ Released Thermal Barrier. 30189_ Released Exp. System Purifier. 30189_ Released Energy Well. 30189_ Released Hds. Centrium Leg. 30189_ Released Exp. Target Analyzer. 30189_ Released Exp. Armor Integrity Analyzer. 30189_ Released AEGIS Remote Shield. 30190_ Slug penetrates Wall. 30190_ Slug penetrates EQ-030. 30190_ Acquired Hds. Centrium Leg. 30191_ Penetrated by Slug. 30193_ Slug penetrates EQ-030. 30193_ Slug penetrates Terminal. 30194_ Penetrated by Slug. 30194_ Slug penetrates Wall. [Achievement: I Was Wrong!] Map ----- +----------------------------------------------------+ | ???????????# #???????????????####+#####???? | | ???????????# #???????????????# #???? | | ???????????# *% #???????????????# #?### | | ???????????# ###########?????# #?#?? | | ???????????# ! # """ #?????# #?#?# | | ???????????#=!! ""R" #?????# #?#?# | | ???????????#=%= # "" " #?????# ! #?#?# | | ??######???#*!= /# #?????# #?#?# | | ### ##### !% #####?# #?#?# | | [% # + #?# #?#?# | | ### #?# #?#?# | | ### ##### # #?# #?# "" #?#?# | | ########???# ####+######?# #?# """" #?#?# | | ###### ## #?????# #?# """" #?#?# | | T" #######+### "" #?#?# | | ] # " + ## #?#?# | | # ## ### ## #?#?# | | # %! #### ##?# ## #?#?# | | # = = !#?# #??# ## #?#?# | | =# !##?# #??# #######+####### | | # ]!* ?# #??# # %% | | # !%#### #??# + =% % %% | | # ]#??# #??# # ! | | # #??# #### # "#### | | #+##### % ??# ## # #?#?# | | ### #??# @ ## # [* #?#?# | | # ^^^^^^ #??# ## # #?#?# | | ! # [#??####### # #?#?? | | + [#??# #???# # #?### | | # %###"#########"## #???? | | """# #???? | | """# ######+####"[ #???? | | R"########?# ! "% #???? | | """#????????# !===#"############# #???? | | "" #????????# ""%* ###############+## #???? | | #????????# """" #??# !! # #???? | | #????????# """" ####] !! # #???? | | #####????????# "" + "|! / # ##### | | ?????????????# ####=| + | | ?????????????# #??#]*""" """ # | | ?????????????# #??# """T""" # ####### | | ???????????###+########??##+############ #??#### | | ???????????# ########### ### #??# | | ???????????# ^^ #??# | | ???????????# ^^ #??# [ | | ???????????# ############+## #??# | | ????????#####+#####??# # #??##### | | ??????### #??# / # #??????? | | ??????#" #??# # ###????? | | ??????#"" "" #??# "" # ""#????? | +----------------------------------------------------+ Best States ------------- Heat Dissipation 186 Coolant Potential 100 Energy Generation 63 Energy Capacity 1050 Matter Stores 300 Matter Capacity 300 Sight Range 23 Terrain Scan Range 24 Terrain Scan Density 110 Power Amplification 40 Additional Mass Support 9 Base Temperature (-) 200 Corruption Containment 12 Corruption Block 14 Armor Coverage 1200 Resistance: KI 25 Resistance: TH 50 Resistance: EM 75 Core Shielding 30 Propulsion Shielding 90 Weapon Shielding 66 Point Defense Rating 160 Phase Shifting 15 Evasion (%) 85 Targeting Accuracy 38 Target Analysis 14 Core Analysis 8 Armor Integrity Analysis 50 Recoil Reduction 6 Kinecelleration 50 Offensive Hacking 38 Defensive Hacking 14 Item Schematics ----------------- Med. Storage Unit | -10/Materials | Hacked Plasma Cutter | -9/Materials | Scanalyzed Arm. Huge Wheel | -8/Materials | Scanalyzed Gatling Laser | -8/Materials | Scanalyzed Hacking Suite | -8/Recycling | Hacked Adv. Melee Analysis Suite | -6/Extension | Hacked Hyp. Mass Driver | -5/Factory | Scanalyzed Assault Drone Bay | -5/Zhirov | Free Exp. Heat Sink | -5/Zhirov | Free Exp. Optical Array | -5/Zhirov | Free Imp. Arc Thrower | -5/Zhirov | Free Robot Schematics ------------------ M-13 Machinist | -10/Materials | Hacked Fabricated ------------ Neutrino Core | x2 | -5/Factory | Preloaded T-07 Excavator | x2 | -5/Factory | Preloaded M-13 Machinist | x1 | -5/Factory Enh. Hardcell Cannon | x2 | -4/Factory | Preloaded Repaired ---------- Wheel | 2% | -9/Materials Gatling Laser | 24% | -8/Materials Arm. Huge Wheel | 32% | -6/Factory Hvy. Assault Cannon | 36% | -6/Factory Cmb. Airjet | 50% | -5/Factory Hvy. Mass Driver | 65% | -5/Factory Studied --------- Wheel | -9/Materials | Hacked Com. Wheel | -9/Materials | Hacked Rocket Launcher | -9/Materials | Hacked Arm. Wheel | -8/Materials | Hacked Hvy. Particle Cannon | -8/Materials | Hacked Gravmag Array | -5/Factory | Hacked Antigrav System | -5/Factory | Hacked Gravmag System | -5/Factory | Hacked Hvy. Mass Driver | -5/Factory | Hacked Cmb. Airjet | -5/Factory | Hacked Lance | -5/Factory | Hacked Mic. Fission Core | -5/Factory | Hacked Imp. Gravmag System | -5/Factory | Hacked Hyp. Mass Driver | -3/Research | Hacked Lgt. Antimatter Reactor | -3/Research | Hacked Biometal Leg | -1/Access | Hacked Alien Tech Used ----------------- Integrated Dissipator Transdimensional Reconstructor Achievements -------------- Express Service I Have Friends Everywhere I Was Wrong! Poison In The Code Prodigal Son Challenges ------------ None Game ------ Seed NetworkPowerCannon Manual? 0 Play Time 07:59:25 Cumulative 312.9 hours Start 2025.12.17 @ 03:41:09 End 2025.12.18 @ 16:51:35 Sessions 13 Manual Loads 0 Difficulty Rogue Special Mode None Game No. 112 Rogue 112 Adventurer 0 Explorer 0 Win Type 0 Total 3 Types 2/0/0/0/0/0/0/0/0/1 Lore% 75 Gallery% 70 Achievement% 59 Wizard Run 0 Options --------- Layout 1 ASCII 0 Keyboard 0 Movement Mouse Keybinds 0 Fullscreen 2 Font 32/SmallcapsGlow Map View 50x35 Zoom Use 0% Tactical HUD 1 Map Filters NONE Filters NONE Steam 1 RUN: 7bb29913-06bf-45a2-b7cd-23a8c4c76db1